Workbook

Sheet NOMINA
A4: Servicio Nacional de Salud
A5: SERCICO REGIONAL DE SALUD ESTE
A6: Nómina Interna Empleados
A7: Correspondiente al mes de Diciembre del año _2025____________
A9: Reg. No. | B9: Cedula | C9: Datos Personales | H9: Grupo Ocupacional | K9: Sueldo Bruto (RD$) | L9: Seguridad Social (LEY 87-01) | T9: Total Retenciones y Aportes | V9: Sueldo Neto (RD$)
E10: Departamento | F10: Funcion | G10: Estatus | I10: Fecha de inicio del contrato | L10: Seguro de Pensión (9.97%) | N10: Riesgos Laborales (1.3%) (2*) | O10: Seguro de Salud (10.53%) (3*) | Q10: Registro Dependientes Adicionales (4*) | R10: IMPUESTO | S10: Subtotal TSS | T10: Deducción Empleado | U10: Aportes Patronal
C11: Nombre | D11: Apellido | I11: Desde | J11: Hasta | L11: Empleado (2.87%) | M11: Patronal (7.10%) | O11: Empleado (3.04%) | P11: Patronal (7.09%) | R11: SOBRE LA RENTA
A12: 1 | B12: 024-0008005-3 | C12: PAULINO | D12: LUIS | E12: Clinica Quisqueya | F12: Vigilante | G12: Contratado | H12: I | I12: 2007-05-08 | K12: 5,000.00 | L12: =K12*2.87% -> 143.50 | M12: =K12*7.1% -> 355.00 | N12: =K12*1.3% -> 65.00 | O12: =K12*3.04% -> 152.00 | P12: =K12*7.09% -> 354.50 | S12: =SUM(L12:Q12) -> 1,070.00 | T12: =SUM(L12+O12) -> 295.50 | U12: =SUM(S12:T12) -> 1,365.50 | V12: =K12-T12 -> 4,704.50
A13: =A12+1 -> 2 | B13: 023-0049840-5 | C13: PETRONILA ALT. | D13: PAYANO | E13: Clinica Angelina | F13: Conserje | G13: Contratado | H13: I | I13: 2007-01-02 | K13: 5,000.00 | L13: =K13*2.87% -> 143.50 | M13: =K13*7.1% -> 355.00 | N13: =K13*1.3% -> 65.00 | O13: =K13*3.04% -> 152.00 | P13: =K13*7.09% -> 354.50 | S13: =SUM(L13:Q13) -> 1,070.00 | T13: =SUM(L13+O13) -> 295.50 | U13: =SUM(S13:T13) -> 1,365.50 | V13: =K13-T13 -> 4,704.50
A14: =A13+1 -> 3 | B14: 024-0009931-9 | C14: RUTH PRISCILA | D14: PEREZ | E14: Clinica Quisqueya | F14: Aux. Farmacia | G14: Contratado | H14: III | I14: 2007-03-01 | K14: 18,400.00 | L14: =K14*2.87% -> 528.08 | M14: =K14*7.1% -> 1,306.40 | N14: =K14*1.3% -> 239.20 | O14: =K14*3.04% -> 559.36 | P14: =K14*7.09% -> 1,304.56 | Q14: 1,190.12 | S14: =SUM(L14:Q14) -> 5,127.72 | T14: =SUM(L14+O14) -> 1,087.44 | U14: =SUM(S14:T14) -> 6,215.16 | V14: =K14-T14 -> 17,312.56
A15: =A14+1 -> 4 | B15: 024-0002608-0 | C15: MARCELINO | D15: GUZMAN | E15: Clinica El Puerto | F15: Sereno | G15: Contratado | H15: I | I15: 2007-06-25 | K15: 5,000.00 | L15: =K15*2.87% -> 143.50 | M15: =K15*7.1% -> 355.00 | N15: =K15*1.3% -> 65.00 | O15: =K15*3.04% -> 152.00 | P15: =K15*7.09% -> 354.50 | S15: =SUM(L15:Q15) -> 1,070.00 | T15: =SUM(L15+O15) -> 295.50 | U15: =SUM(S15:T15) -> 1,365.50 | V15: =K15-T15 -> 4,704.50
A16: =A15+1 -> 5 | B16: 023-0072812-4 | C16: ANA MERCEDES | D16: DE LA CRUZ | E16: Clinica Barrio Blanco | F16: Conserje | G16: Contratado | H16: I | I16: 2007-06-01 | K16: 5,000.00 | L16: =K16*2.87% -> 143.50 | M16: =K16*7.1% -> 355.00 | N16: =K16*1.3% -> 65.00 | O16: =K16*3.04% -> 152.00 | P16: =K16*7.09% -> 354.50 | S16: =SUM(L16:Q16) -> 1,070.00 | T16: =SUM(L16+O16) -> 295.50 | U16: =SUM(S16:T16) -> 1,365.50 | V16: =K16-T16 -> 4,704.50
A17: =A16+1 -> 6 | B17: 024-0004970-2 | C17: FRANCISCA | D17: POMUCENO SORIANO | E17: Clinica Guayabal | F17: Conserje | G17: Contratado | H17: I | I17: 2007-07-02 | K17: 5,000.00 | L17: =K17*2.87% -> 143.50 | M17: =K17*7.1% -> 355.00 | N17: =K17*1.3% -> 65.00 | O17: =K17*3.04% -> 152.00 | P17: =K17*7.09% -> 354.50 | S17: =SUM(L17:Q17) -> 1,070.00 | T17: =SUM(L17+O17) -> 295.50 | U17: =SUM(S17:T17) -> 1,365.50 | V17: =K17-T17 -> 4,704.50
A18: =A17+1 -> 7 | B18: 024-0012760-7 | C18: SIMONA | D18: PEGUERO HERNANDEZ | E18: Clinica Honduras | F18: Conserje | G18: Contratado | H18: I | I18: 2007-07-02 | K18: 5,000.00 | L18: =K18*2.87% -> 143.50 | M18: =K18*7.1% -> 355.00 | N18: =K18*1.3% -> 65.00 | O18: =K18*3.04% -> 152.00 | P18: =K18*7.09% -> 354.50 | S18: =SUM(L18:Q18) -> 1,070.00 | T18: =SUM(L18+O18) -> 295.50 | U18: =SUM(S18:T18) -> 1,365.50 | V18: =K18-T18 -> 4,704.50
A19: =A18+1 -> 8 | B19: 024-0013605-3 | C19: LEONEL | D19: DE LA CRUZ HERNANDEZ | E19: Clinica Honduras | F19: Sereno | G19: Contratado | H19: I | I19: 2007-07-02 | K19: 5,000.00 | L19: =K19*2.87% -> 143.50 | M19: =K19*7.1% -> 355.00 | N19: =K19*1.3% -> 65.00 | O19: =K19*3.04% -> 152.00 | P19: =K19*7.09% -> 354.50 | S19: =SUM(L19:Q19) -> 1,070.00 | T19: =SUM(L19+O19) -> 295.50 | U19: =SUM(S19:T19) -> 1,365.50 | V19: =K19-T19 -> 4,704.50
A20: =A19+1 -> 9 | B20: 023-0137052-0 | C20: JUAN JOSE | D20: JUAN JEAN | E20: Unap Batey Esperanza | F20: Sereno | G20: Contratado | H20: I | I20: 2007-07-18 | K20: 5,000.00 | L20: =K20*2.87% -> 143.50 | M20: =K20*7.1% -> 355.00 | N20: =K20*1.3% -> 65.00 | O20: =K20*3.04% -> 152.00 | P20: =K20*7.09% -> 354.50 | S20: =SUM(L20:Q20) -> 1,070.00 | T20: =SUM(L20+O20) -> 295.50 | U20: =SUM(S20:T20) -> 1,365.50 | V20: =K20-T20 -> 4,704.50
A21: =A20+1 -> 10 | B21: 023-0057845-3 | C21: RAMON A. | D21: PEGUERO AQUINO | E21: Unap Angelina | F21: Sereno | G21: Contratado | H21: I | I21: 2007-07-23 | K21: 5,000.00 | L21: =K21*2.87% -> 143.50 | M21: =K21*7.1% -> 355.00 | N21: =K21*1.3% -> 65.00 | O21: =K21*3.04% -> 152.00 | P21: =K21*7.09% -> 354.50 | S21: =SUM(L21:Q21) -> 1,070.00 | T21: =SUM(L21+O21) -> 295.50 | U21: =SUM(S21:T21) -> 1,365.50 | V21: =K21-T21 -> 4,704.50
A22: =A21+1 -> 11 | B22: 023-0064326-5 | C22: MARIA DEL C. | D22: MENDEZ | E22: Clinica Porvenir | F22: Atencion al Usuario | G22: Contratado | H22: III | I22: 2007-08-01 | K22: 7,000.00 | L22: =K22*2.87% -> 200.90 | M22: =K22*7.1% -> 497.00 | N22: =K22*1.3% -> 91.00 | O22: =K22*3.04% -> 212.80 | P22: =K22*7.09% -> 496.30 | S22: =SUM(L22:Q22) -> 1,498.00 | T22: =SUM(L22+O22) -> 413.70 | U22: =SUM(S22:T22) -> 1,911.70 | V22: =K22-T22 -> 6,586.30
A23: =A22+1 -> 12 | B23: 023-0126548-0 | C23: ALEX | D23: ROMBLEY | E23: Clinica Porvenir | F23: Sereno | G23: Contratado | H23: I | I23: 2007-09-13 | K23: 8,318.04 | L23: =K23*2.87% -> 238.73 | M23: =K23*7.1% -> 590.58 | N23: =K23*1.3% -> 108.13 | O23: =K23*3.04% -> 252.87 | P23: =K23*7.09% -> 589.75 | S23: =SUM(L23:Q23) -> 1,780.06 | T23: =SUM(L23+O23) -> 491.60 | U23: =SUM(S23:T23) -> 2,271.66 | V23: =K23-T23 -> 7,826.44
A24: =A23+1 -> 13 | B24: 023-0066599-5 | C24: REYNA ISABEL | D24: MORLA DE A. | E24: Clinica Barrio Lindo | F24: Bioanalista | G24: Contratado | H24: IV | I24: 2008-09-11 | K24: 18,312.00 | L24: =K24*2.87% -> 525.55 | M24: =K24*7.1% -> 1,300.15 | N24: =K24*1.3% -> 238.06 | O24: =K24*3.04% -> 556.68 | P24: =K24*7.09% -> 1,298.32 | S24: =SUM(L24:Q24) -> 3,918.77 | T24: =SUM(L24+O24) -> 1,082.24 | U24: =SUM(S24:T24) -> 5,001.01 | V24: =K24-T24 -> 17,229.76
A25: =A24+1 -> 14 | B25: 023-0011428-3 | C25: EVA | D25: MATEO FERRERAS | E25: UNAP Uasd | F25: Medico General | G25: Contratado | H25: IV | I25: 2007-08-08 | K25: 28,657.01 | L25: =K25*2.87% -> 822.46 | M25: =K25*7.1% -> 2,034.65 | N25: =K25*1.3% -> 372.54 | O25: =K25*3.04% -> 871.17 | P25: =K25*7.09% -> 2,031.78 | S25: =SUM(L25:Q25) -> 6,132.60 | T25: =SUM(L25+O25) -> 1,693.63 | U25: =SUM(S25:T25) -> 7,826.23 | V25: =K25-T25 -> 26,963.38
A26: =A25+1 -> 15 | B26: 027-0013504-5 | C26: JOSE | D26: CALAZAN CALMONA | E26: UNAP las colinas | F26: Sereno | G26: Contratado | H26: I | I26: 2008-02-21 | K26: 5,000.00 | L26: =K26*2.87% -> 143.50 | M26: =K26*7.1% -> 355.00 | N26: =K26*1.3% -> 65.00 | O26: =K26*3.04% -> 152.00 | P26: =K26*7.09% -> 354.50 | S26: =SUM(L26:Q26) -> 1,070.00 | T26: =SUM(L26+O26) -> 295.50 | U26: =SUM(S26:T26) -> 1,365.50 | V26: =K26-T26 -> 4,704.50
A27: =A26+1 -> 16 | B27: 023-0084459-0 | C27: BEATRIZ ALT. | D27: SEVERINO | E27: UNAP Barrio Blanco | F27: Odontologa | G27: Contratado | H27: IV | I27: 2008-03-17 | K27: 24,000.00 | L27: =K27*2.87% -> 688.80 | M27: =K27*7.1% -> 1,704.00 | N27: =K27*1.3% -> 312.00 | O27: =K27*3.04% -> 729.60 | P27: =K27*7.09% -> 1,701.60 | S27: =SUM(L27:Q27) -> 5,136.00 | T27: =SUM(L27+O27) -> 1,418.40 | U27: =SUM(S27:T27) -> 6,554.40 | V27: =K27-T27 -> 22,581.60
A28: =A27+1 -> 17 | B28: 023-0041126-7 | C28: CARIDAD TODMAN | D28: DE LOS SANTOS | E28: unap Monte coca | F28: Enfermera Aux. | G28: Contratado | H28: III | I28: 2008-04-01 | K28: 11,596.60 | L28: =K28*2.87% -> 332.82 | M28: =K28*7.1% -> 823.36 | N28: =K28*1.3% -> 150.76 | O28: =K28*3.04% -> 352.54 | P28: =K28*7.09% -> 822.20 | S28: =SUM(L28:Q28) -> 2,481.67 | T28: =SUM(L28+O28) -> 685.36 | U28: =SUM(S28:T28) -> 3,167.03 | V28: =K28-T28 -> 10,911.24
A29: =A28+1 -> 18 | B29: 023-0017693-6 | C29: PEDRO | D29: ZORRILLA | E29: UNAP Barrio Blanco | F29: Sereno Clinica | G29: Contratado | H29: I | I29: 2008-04-30 | K29: 5,000.00 | L29: =K29*2.87% -> 143.50 | M29: =K29*7.1% -> 355.00 | N29: =K29*1.3% -> 65.00 | O29: =K29*3.04% -> 152.00 | P29: =K29*7.09% -> 354.50 | S29: =SUM(L29:Q29) -> 1,070.00 | T29: =SUM(L29+O29) -> 295.50 | U29: =SUM(S29:T29) -> 1,365.50 | V29: =K29-T29 -> 4,704.50
A30: =A29+1 -> 19 | B30: 023-0005830-8 | C30: FRANCISCO A | D30: CASTRO R. | E30: Almacen Regional | F30: Auxiliar de almacen | G30: Contratado | H30: III | I30: 2008-08-01 | K30: 9,600.00 | L30: =K30*2.87% -> 275.52 | M30: =K30*7.1% -> 681.60 | N30: =K30*1.3% -> 124.80 | O30: =K30*3.04% -> 291.84 | P30: =K30*7.09% -> 680.64 | S30: =SUM(L30:Q30) -> 2,054.40 | T30: =SUM(L30+O30) -> 567.36 | U30: =SUM(S30:T30) -> 2,621.76 | V30: =K30-T30 -> 9,032.64
A31: =A30+1 -> 20 | B31: 023-0025423-8 | C31: ODILE A. | D31: MILIAN MCCABE | E31: Unap porvenir | F31: Aux. de Bioanalisis | G31: Contratado | H31: III | I31: 2008-09-01 | K31: 22,000.00 | L31: =K31*2.87% -> 631.40 | M31: =K31*7.1% -> 1,562.00 | N31: =K31*1.3% -> 286.00 | O31: =K31*3.04% -> 668.80 | P31: =K31*7.09% -> 1,559.80 | Q31: 2380.24 | S31: =SUM(L31:Q31) -> 7,088.24 | T31: =SUM(L31+O31) -> 1,300.20 | U31: =SUM(S31:T31) -> 8,388.44 | V31: =K31-T31 -> 20,699.80
A32: =A31+1 -> 21 | B32: 026-0113870-0 | C32: JUANA | D32: MORLA POLANCO | E32: UNAP Batey Jagual | F32: Conseje | G32: Contratado | H32: I | I32: 2008-09-01 | K32: 5,000.00 | L32: =K32*2.87% -> 143.50 | M32: =K32*7.1% -> 355.00 | N32: =K32*1.3% -> 65.00 | O32: =K32*3.04% -> 152.00 | P32: =K32*7.09% -> 354.50 | S32: =SUM(L32:Q32) -> 1,070.00 | T32: =SUM(L32+O32) -> 295.50 | U32: =SUM(S32:T32) -> 1,365.50 | V32: =K32-T32 -> 4,704.50
A33: =A32+1 -> 22 | B33: 011-0000744-0 | C33: ANA JULIA | D33: MENDEZ BRITO | E33: Unap Evangelina Rodriguez | F33: Aux. Enfermera | G33: Contratado | H33: III | I33: 2008-10-08 | K33: 13,000.00 | L33: =K33*2.87% -> 373.10 | M33: =K33*7.1% -> 923.00 | N33: =K33*1.3% -> 169.00 | O33: =K33*3.04% -> 395.20 | P33: =K33*7.09% -> 921.70 | S33: =SUM(L33:Q33) -> 2,782.00 | T33: =SUM(L33+O33) -> 768.30 | U33: =SUM(S33:T33) -> 3,550.30 | V33: =K33-T33 -> 12,231.70
A34: =A33+1 -> 23 | B34: 023-0003063-8 | C34: YVELISSE E. | D34: ASTACIO PEÑA | E34: Oficina Regional | F34: Conserje | G34: Contratado | H34: I | I34: 2009-01-19 | K34: 8,050.00 | L34: =K34*2.87% -> 231.04 | M34: =K34*7.1% -> 571.55 | N34: =K34*1.3% -> 104.65 | O34: =K34*3.04% -> 244.72 | P34: =K34*7.09% -> 570.75 | Q34: 1190.12 | S34: =SUM(L34:Q34) -> 2,912.82 | T34: =SUM(L34+O34) -> 475.76 | U34: =SUM(S34:T34) -> 3,388.58 | V34: =K34-T34 -> 7,574.25
A35: =A34+1 -> 24 | B35: 023-0058958-3 | C35: EPIFANIO | D35: CALDERON | E35: Clinica Santa fe | F35: Sereno | G35: Contratado | H35: I | I35: 2009-02-01 | K35: 5,000.00 | L35: =K35*2.87% -> 143.50 | M35: =K35*7.1% -> 355.00 | N35: =K35*1.3% -> 65.00 | O35: =K35*3.04% -> 152.00 | P35: =K35*7.09% -> 354.50 | S35: =SUM(L35:Q35) -> 1,070.00 | T35: =SUM(L35+O35) -> 295.50 | U35: =SUM(S35:T35) -> 1,365.50 | V35: =K35-T35 -> 4,704.50
A36: =A35+1 -> 25 | B36: 023-0028027-4 | C36: FRANCISCO DE J. | D36: MATICH CASTRO | E36: Almacen Regional | F36: Auxiliar de almacen | G36: Contratado | H36: III | I36: 2009-02-01 | K36: 9,600.00 | L36: =K36*2.87% -> 275.52 | M36: =K36*7.1% -> 681.60 | N36: =K36*1.3% -> 124.80 | O36: =K36*3.04% -> 291.84 | P36: =K36*7.09% -> 680.64 | S36: =SUM(L36:Q36) -> 2,054.40 | T36: =SUM(L36+O36) -> 567.36 | U36: =SUM(S36:T36) -> 2,621.76 | V36: =K36-T36 -> 9,032.64
A37: =A36+1 -> 26 | B37: 024-0022376-0 | C37: YERNIS NOEMIS | D37: POCHE F. | E37: clinica Quisqueya | F37: Secretaria | G37: Contratado | H37: II | I37: 2009-08-03 | K37: 8,000.00 | L37: =K37*2.87% -> 229.60 | M37: =K37*7.1% -> 568.00 | N37: =K37*1.3% -> 104.00 | O37: =K37*3.04% -> 243.20 | P37: =K37*7.09% -> 567.20 | S37: =SUM(L37:Q37) -> 1,712.00 | T37: =SUM(L37+O37) -> 472.80 | U37: =SUM(S37:T37) -> 2,184.80 | V37: =K37-T37 -> 7,527.20
A38: =A37+1 -> 27 | B38: 024-0013633-5 | C38: JOAQUIN | D38: EUSEBIO | E38: Clinica Cayacoa | F38: Sereno | G38: Contratado | H38: I | I38: 2009-12-01 | K38: 5,000.00 | L38: =K38*2.87% -> 143.50 | M38: =K38*7.1% -> 355.00 | N38: =K38*1.3% -> 65.00 | O38: =K38*3.04% -> 152.00 | P38: =K38*7.09% -> 354.50 | S38: =SUM(L38:Q38) -> 1,070.00 | T38: =SUM(L38+O38) -> 295.50 | U38: =SUM(S38:T38) -> 1,365.50 | V38: =K38-T38 -> 4,704.50
A39: =A38+1 -> 28 | B39: 023-0109901-2 | C39: ROSA SANCHEZ | D39: CABRERA | E39: Clinica Porvenir | F39: Conserje | G39: Contratado | H39: I | I39: 2010-02-01 | K39: 8,000.00 | L39: =K39*2.87% -> 229.60 | M39: =K39*7.1% -> 568.00 | N39: =K39*1.3% -> 104.00 | O39: =K39*3.04% -> 243.20 | P39: =K39*7.09% -> 567.20 | S39: =SUM(L39:Q39) -> 1,712.00 | T39: =SUM(L39+O39) -> 472.80 | U39: =SUM(S39:T39) -> 2,184.80 | V39: =K39-T39 -> 7,527.20
A40: =A39+1 -> 29 | B40: 023-0074695-1 | C40: BIENVENIDO | D40: BUSTAMANTE GUZMAN | E40: Dpto. Publicidad | F40: Diagramador | G40: Contratado | H40: III | I40: 2010-09-01 | K40: 6,000.00 | L40: =K40*2.87% -> 172.20 | M40: =K40*7.1% -> 426.00 | N40: =K40*1.3% -> 78.00 | O40: =K40*3.04% -> 182.40 | P40: =K40*7.09% -> 425.40 | S40: =SUM(L40:Q40) -> 1,284.00 | T40: =SUM(L40+O40) -> 354.60 | U40: =SUM(S40:T40) -> 1,638.60 | V40: =K40-T40 -> 5,645.40
A41: =A40+1 -> 30 | B41: 024-0006526-0 | C41: VICTOR | D41: NATERA | E41: Unap Quisquella | F41: Sereno | G41: Contratado | H41: I | I41: 2011-03-01 | K41: 5,000.00 | L41: =K41*2.87% -> 143.50 | M41: =K41*7.1% -> 355.00 | N41: =K41*1.3% -> 65.00 | O41: =K41*3.04% -> 152.00 | P41: =K41*7.09% -> 354.50 | S41: =SUM(L41:Q41) -> 1,070.00 | T41: =SUM(L41+O41) -> 295.50 | U41: =SUM(S41:T41) -> 1,365.50 | V41: =K41-T41 -> 4,704.50
A42: =A41+1 -> 31 | B42: 025-0009474-9 | C42: ESTHER | D42: HINOJOSA | E42: Unap Povenir | F42: Laboratorio | G42: Contratado | H42: IV | I42: 2012-10-05 | K42: 13,312.00 | L42: =K42*2.87% -> 382.05 | M42: =K42*7.1% -> 945.15 | N42: =K42*1.3% -> 173.06 | O42: =K42*3.04% -> 404.68 | P42: =K42*7.09% -> 943.82 | S42: =SUM(L42:Q42) -> 2,848.77 | T42: =SUM(L42+O42) -> 786.74 | U42: =SUM(S42:T42) -> 3,635.51 | V42: =K42-T42 -> 12,525.26
A43: =A42+1 -> 32 | B43: 027-0039773-6 | C43: ANA LUISA | D43: JEAN JOSEPH | E43: unap Monte coca | F43: Conserje | G43: Contratado | H43: I | I43: 2012-04-01 | K43: 5,000.00 | L43: =K43*2.87% -> 143.50 | M43: =K43*7.1% -> 355.00 | N43: =K43*1.3% -> 65.00 | O43: =K43*3.04% -> 152.00 | P43: =K43*7.09% -> 354.50 | S43: =SUM(L43:Q43) -> 1,070.00 | T43: =SUM(L43+O43) -> 295.50 | U43: =SUM(S43:T43) -> 1,365.50 | V43: =K43-T43 -> 4,704.50
A44: =A43+1 -> 33 | B44: 011-0028087-2 | C44: FROILAN | D44: VALDEZ LORENZO | E44: Centro de Diagnostico | F44: Sonografista | G44: Contratado | H44: IV | I44: 2013-01-02 | K44: 30,000.00 | L44: =K44*2.87% -> 861.00 | M44: =K44*7.1% -> 2,130.00 | N44: =K44*1.3% -> 390.00 | O44: =K44*3.04% -> 912.00 | P44: =K44*7.09% -> 2,127.00 | S44: =SUM(L44:Q44) -> 6,420.00 | T44: =SUM(L44+O44) -> 1,773.00 | U44: =SUM(S44:T44) -> 8,193.00 | V44: =K44-T44 -> 28,227.00
A45: =A44+1 -> 34 | B45: 023-0117440-1 | C45: CARY ROSEMARY | D45: SANTANA JABALERA | E45: unap San Martin de Pobre | F45: Enfermera | G45: Contratado | H45: III | I45: 2015-04-01 | K45: 8,000.00 | L45: =K45*2.87% -> 229.60 | M45: =K45*7.1% -> 568.00 | N45: =K45*1.3% -> 104.00 | O45: =K45*3.04% -> 243.20 | P45: =K45*7.09% -> 567.20 | S45: =SUM(L45:Q45) -> 1,712.00 | T45: =SUM(L45+O45) -> 472.80 | U45: =SUM(S45:T45) -> 2,184.80 | V45: =K45-T45 -> 7,527.20
A46: =A45+1 -> 35 | B46: 024-0011102-3 | C46: MARIA ALT. | D46: POLANCO | E46: Unap Quisqueya | F46: Conserje | G46: Contratado | H46: I | I46: 2014-09-01 | K46: 5,000.00 | L46: =K46*2.87% -> 143.50 | M46: =K46*7.1% -> 355.00 | N46: =K46*1.3% -> 65.00 | O46: =K46*3.04% -> 152.00 | P46: =K46*7.09% -> 354.50 | S46: =SUM(L46:Q46) -> 1,070.00 | T46: =SUM(L46+O46) -> 295.50 | U46: =SUM(S46:T46) -> 1,365.50 | V46: =K46-T46 -> 4,704.50
A47: =A46+1 -> 36 | B47: 023-0092307-1 | C47: YUDELKIS | D47: FLEMING HODGE | E47: unap cachena | F47: Conserje | G47: Contratado | H47: I | I47: 2014-11-01 | K47: 5,000.00 | L47: =K47*2.87% -> 143.50 | M47: =K47*7.1% -> 355.00 | N47: =K47*1.3% -> 65.00 | O47: =K47*3.04% -> 152.00 | P47: =K47*7.09% -> 354.50 | S47: =SUM(L47:Q47) -> 1,070.00 | T47: =SUM(L47+O47) -> 295.50 | U47: =SUM(S47:T47) -> 1,365.50 | V47: =K47-T47 -> 4,704.50
A48: =A47+1 -> 37 | B48: 023-0020559-4 | C48: LICETTE | D48: JIMENEZ GARCIA | E48: Unap San Martin de Porre | F48: Conserje | G48: Contratado | H48: I | I48: 2015-05-01 | K48: 5,000.00 | L48: =K48*2.87% -> 143.50 | M48: =K48*7.1% -> 355.00 | N48: =K48*1.3% -> 65.00 | O48: =K48*3.04% -> 152.00 | P48: =K48*7.09% -> 354.50 | S48: =SUM(L48:Q48) -> 1,070.00 | T48: =SUM(L48+O48) -> 295.50 | U48: =SUM(S48:T48) -> 1,365.50 | V48: =K48-T48 -> 4,704.50
A49: =A48+1 -> 38 | B49: 023-0040467-6 | C49: BASILIA E. | D49: JOSE CIRIACO | E49: Unap cachena | F49: Conserje | G49: Contratado | H49: I | I49: 2015-06-01 | K49: 5,000.00 | L49: =K49*2.87% -> 143.50 | M49: =K49*7.1% -> 355.00 | N49: =K49*1.3% -> 65.00 | O49: =K49*3.04% -> 152.00 | P49: =K49*7.09% -> 354.50 | S49: =SUM(L49:Q49) -> 1,070.00 | T49: =SUM(L49+O49) -> 295.50 | U49: =SUM(S49:T49) -> 1,365.50 | V49: =K49-T49 -> 4,704.50
A50: =A49+1 -> 39 | B50: 027-0018363-1 | C50: BASILIO | D50: CALDERON MEDINA | E50: Unap camara Junior | F50: Sereno | G50: Contratado | H50: I | I50: 2016-02-02 | K50: 5,000.00 | L50: =K50*2.87% -> 143.50 | M50: =K50*7.1% -> 355.00 | N50: =K50*1.3% -> 65.00 | O50: =K50*3.04% -> 152.00 | P50: =K50*7.09% -> 354.50 | S50: =SUM(L50:Q50) -> 1,070.00 | T50: =SUM(L50+O50) -> 295.50 | U50: =SUM(S50:T50) -> 1,365.50 | V50: =K50-T50 -> 4,704.50
A51: =A50+1 -> 40 | B51: 023-0153307-7 | C51: NELCIDA YOLADIS | D51: LINARES | E51: Unap brisal | F51: Enfermera | G51: Contratado | H51: III | I51: 2016-01-01 | K51: 8,000.00 | L51: =K51*2.87% -> 229.60 | M51: =K51*7.1% -> 568.00 | N51: =K51*1.3% -> 104.00 | O51: =K51*3.04% -> 243.20 | P51: =K51*7.09% -> 567.20 | S51: =SUM(L51:Q51) -> 1,712.00 | T51: =SUM(L51+O51) -> 472.80 | U51: =SUM(S51:T51) -> 2,184.80 | V51: =K51-T51 -> 7,527.20
A52: =A51+1 -> 41 | B52: 023-0084528-1 | C52: MARIA | D52: NIEVES MARTE | E52: Unap Juan Dolio | F52: Conserje | G52: Contratado | H52: I | I52: 2014-04-01 | K52: 5,000.00 | L52: =K52*2.87% -> 143.50 | M52: =K52*7.1% -> 355.00 | N52: =K52*1.3% -> 65.00 | O52: =K52*3.04% -> 152.00 | P52: =K52*7.09% -> 354.50 | S52: =SUM(L52:Q52) -> 1,070.00 | T52: =SUM(L52+O52) -> 295.50 | U52: =SUM(S52:T52) -> 1,365.50 | V52: =K52-T52 -> 4,704.50
A53: =A52+1 -> 42 | B53: 024-0013600-4 | C53: MERCEDES | D53: DANIEL DELGADO | E53: Unap Hondura | F53: Conserje | G53: Contratado | H53: I | I53: 2014-01-06 | K53: 5,000.00 | L53: =K53*2.87% -> 143.50 | M53: =K53*7.1% -> 355.00 | N53: =K53*1.3% -> 65.00 | O53: =K53*3.04% -> 152.00 | P53: =K53*7.09% -> 354.50 | S53: =SUM(L53:Q53) -> 1,070.00 | T53: =SUM(L53+O53) -> 295.50 | U53: =SUM(S53:T53) -> 1,365.50 | V53: =K53-T53 -> 4,704.50
A54: =A53+1 -> 43 | B54: 023-0128257-6 | C54: DARIO FRANCISCO | D54: PIE BLAKE | E54: Unap consuelito | F54: Sereno | G54: Contratado | H54: I | I54: 2016-07-01 | K54: 5,000.00 | L54: =K54*2.87% -> 143.50 | M54: =K54*7.1% -> 355.00 | N54: =K54*1.3% -> 65.00 | O54: =K54*3.04% -> 152.00 | P54: =K54*7.09% -> 354.50 | S54: =SUM(L54:Q54) -> 1,070.00 | T54: =SUM(L54+O54) -> 295.50 | U54: =SUM(S54:T54) -> 1,365.50 | V54: =K54-T54 -> 4,704.50
A55: =A54+1 -> 44 | B55: 023-0077279-1 | C55: ALTAGRACIA MEDISA | D55: SEGUIILIS | E55: Unap consuelito | F55: Conserje | G55: Contratado | H55: I | I55: 2016-07-01 | K55: 5,000.00 | L55: =K55*2.87% -> 143.50 | M55: =K55*7.1% -> 355.00 | N55: =K55*1.3% -> 65.00 | O55: =K55*3.04% -> 152.00 | P55: =K55*7.09% -> 354.50 | S55: =SUM(L55:Q55) -> 1,070.00 | T55: =SUM(L55+O55) -> 295.50 | U55: =SUM(S55:T55) -> 1,365.50 | V55: =K55-T55 -> 4,704.50
A56: =A55+1 -> 45 | B56: 023-0138681-5 | C56: ROSMERY | D56: SERRA HERNANDEZ | E56: Unap Bo. Mexico | F56: Conserje | G56: Contratado | H56: I | I56: 2017-01-01 | K56: 5,000.00 | L56: =K56*2.87% -> 143.50 | M56: =K56*7.1% -> 355.00 | N56: =K56*1.3% -> 65.00 | O56: =K56*3.04% -> 152.00 | P56: =K56*7.09% -> 354.50 | S56: =SUM(L56:Q56) -> 1,070.00 | T56: =SUM(L56+O56) -> 295.50 | U56: =SUM(S56:T56) -> 1,365.50 | V56: =K56-T56 -> 4,704.50
A57: =A56+1 -> 46 | B57: 023-0065771-1 | C57: DIONICIO MADRIGAL | D57: GARCIA | E57: UNAP punta de garza | F57: Sereno | G57: Contratado | H57: I | I57: 2017-07-01 | K57: 5,000.00 | L57: =K57*2.87% -> 143.50 | M57: =K57*7.1% -> 355.00 | N57: =K57*1.3% -> 65.00 | O57: =K57*3.04% -> 152.00 | P57: =K57*7.09% -> 354.50 | S57: =SUM(L57:Q57) -> 1,070.00 | T57: =SUM(L57+O57) -> 295.50 | U57: =SUM(S57:T57) -> 1,365.50 | V57: =K57-T57 -> 4,704.50
A58: =A57+1 -> 47 | B58: 023-0012798-8 | C58: HECTOR MIGUEL | D58: A.MEDRANO | E58: unap Evan Rodriguez | F58: Seguridad | G58: Contratado | H58: I | I58: 2018-04-01 | K58: 6,000.00 | L58: =K58*2.87% -> 172.20 | M58: =K58*7.1% -> 426.00 | N58: =K58*1.3% -> 78.00 | O58: =K58*3.04% -> 182.40 | P58: =K58*7.09% -> 425.40 | S58: =SUM(L58:Q58) -> 1,284.00 | T58: =SUM(L58+O58) -> 354.60 | U58: =SUM(S58:T58) -> 1,638.60 | V58: =K58-T58 -> 5,645.40
A59: =A58+1 -> 48 | B59: 024-0026614-0 | C59: ESTALIN MARIA | D59: I.MORALES | E59: unap el puerto | F59: Promotora | G59: Contratado | H59: II | I59: 2018-04-01 | K59: 5,000.00 | L59: =K59*2.87% -> 143.50 | M59: =K59*7.1% -> 355.00 | N59: =K59*1.3% -> 65.00 | O59: =K59*3.04% -> 152.00 | P59: =K59*7.09% -> 354.50 | S59: =SUM(L59:Q59) -> 1,070.00 | T59: =SUM(L59+O59) -> 295.50 | U59: =SUM(S59:T59) -> 1,365.50 | V59: =K59-T59 -> 4,704.50
A60: =A59+1 -> 49 | B60: 011-347480-3 | C60: MARLENYS RAMONA | D60: QUEVEDO ENCARNACION | E60: UNAP Don Juan | F60: Medico Asistente | G60: Contratado | H60: IV | I60: 2019-05-19 | K60: 30,000.00 | L60: =K60*2.87% -> 861.00 | M60: =K60*7.1% -> 2,130.00 | N60: =K60*1.3% -> 390.00 | O60: =K60*3.04% -> 912.00 | P60: =K60*7.09% -> 2,127.00 | S60: =SUM(L60:Q60) -> 6,420.00 | T60: =SUM(L60+O60) -> 1,773.00 | U60: =SUM(S60:T60) -> 8,193.00 | V60: =K60-T60 -> 28,227.00
A61: =A60+1 -> 50 | B61: 024-0016779-3 | C61: LICITANIA | D61: MADRIGAL TEJEDA | E61: UNAP Quisqueya | F61: Conserje | G61: Contratado | H61: I | I61: 2018-07-01 | K61: 5,000.00 | L61: =K61*2.87% -> 143.50 | M61: =K61*7.1% -> 355.00 | N61: =K61*1.3% -> 65.00 | O61: =K61*3.04% -> 152.00 | P61: =K61*7.09% -> 354.50 | S61: =SUM(L61:Q61) -> 1,070.00 | T61: =SUM(L61+O61) -> 295.50 | U61: =SUM(S61:T61) -> 1,365.50 | V61: =K61-T61 -> 4,704.50
A62: =A61+1 -> 51 | B62: 023-0022044-5 | C62: VICTOR MANUEL | D62: POLANCO | E62: Monte Coca | F62: Medico Asistente | G62: Contratado | H62: IV | I62: 2019-04-01 | K62: 30,000.00 | L62: =K62*2.87% -> 861.00 | M62: =K62*7.1% -> 2,130.00 | N62: =K62*1.3% -> 390.00 | O62: =K62*3.04% -> 912.00 | P62: =K62*7.09% -> 2,127.00 | S62: =SUM(L62:Q62) -> 6,420.00 | T62: =SUM(L62+O62) -> 1,773.00 | U62: =SUM(S62:T62) -> 8,193.00 | V62: =K62-T62 -> 28,227.00
A63: =A62+1 -> 52 | B63: 023-0007034-5 | C63: RAMON | D63: GIL | E63: Oficina de area | F63: Licencia a sereno | G63: Contratado | H63: I | I63: 2019-04-01 | K63: 5,000.00 | L63: =K63*2.87% -> 143.50 | M63: =K63*7.1% -> 355.00 | N63: =K63*1.3% -> 65.00 | O63: =K63*3.04% -> 152.00 | P63: =K63*7.09% -> 354.50 | S63: =SUM(L63:Q63) -> 1,070.00 | T63: =SUM(L63+O63) -> 295.50 | U63: =SUM(S63:T63) -> 1,365.50 | V63: =K63-T63 -> 4,704.50
A64: =A63+1 -> 53 | B64: 023-0032092-2 | C64: JACINTO | D64: ORTEGA | E64: Uunap cumayasa | F64: Sereno | G64: Contratado | H64: I | I64: 2019-08-31 | K64: 6,500.00 | L64: =K64*2.87% -> 186.55 | M64: =K64*7.1% -> 461.50 | N64: =K64*1.3% -> 84.50 | O64: =K64*3.04% -> 197.60 | P64: =K64*7.09% -> 460.85 | S64: =SUM(L64:Q64) -> 1,391.00 | T64: =SUM(L64+O64) -> 384.15 | U64: =SUM(S64:T64) -> 1,775.15 | V64: =K64-T64 -> 6,115.85
A65: =A64+1 -> 54 | B65: 023-0117014-4 | C65: YENI ALT. | D65: GUERRERO MENDEZ | E65: Unap aleman | F65: Conserje | G65: Contratado | H65: I | I65: 2019-10-01 | K65: 4,000.00 | L65: =K65*2.87% -> 114.80 | M65: =K65*7.1% -> 284.00 | N65: =K65*1.3% -> 52.00 | O65: =K65*3.04% -> 121.60 | P65: =K65*7.09% -> 283.60 | S65: =SUM(L65:Q65) -> 856.00 | T65: =SUM(L65+O65) -> 236.40 | U65: =SUM(S65:T65) -> 1,092.40 | V65: =K65-T65 -> 3,763.60
A66: =A65+1 -> 55 | B66: 023-0135235-3 | C66: JEANINA | D66: CASTILLO MUÑOZ | E66: Unap barrio Lindo SPM | F66: Conserje | G66: Contratado | H66: I | I66: 2020-01-04 | K66: 8,000.00 | L66: =K66*2.87% -> 229.60 | M66: =K66*7.1% -> 568.00 | N66: =K66*1.3% -> 104.00 | O66: =K66*3.04% -> 243.20 | P66: =K66*7.09% -> 567.20 | S66: =SUM(L66:Q66) -> 1,712.00 | T66: =SUM(L66+O66) -> 472.80 | U66: =SUM(S66:T66) -> 2,184.80 | V66: =K66-T66 -> 7,527.20
A67: =A66+1 -> 56 | B67: 030-0001180-3 | C67: MASILLON | D67: BENJAMIN | E67: Unap Margarita | F67: Sereno | G67: Contratado | H67: I | I67: 13/10/2020 | K67: 5,000.00 | L67: =K67*2.87% -> 143.50 | M67: =K67*7.1% -> 355.00 | N67: =K67*1.3% -> 65.00 | O67: =K67*3.04% -> 152.00 | P67: =K67*7.09% -> 354.50 | S67: =SUM(L67:Q67) -> 1,070.00 | T67: =SUM(L67+O67) -> 295.50 | U67: =SUM(S67:T67) -> 1,365.50 | V67: =K67-T67 -> 4,704.50
A68: =A67+1 -> 57 | B68: 4022056974-9 | C68: EUNICE ELAYNE | D68: DE LA CRUZ CASTRO | E68: Unap pedro justo carrion | F68: Aux. de farmacia | G68: Contratado | H68: III | I68: 2020-11-01 | K68: 12,000.00 | L68: =K68*2.87% -> 344.40 | M68: =K68*7.1% -> 852.00 | N68: =K68*1.3% -> 156.00 | O68: =K68*3.04% -> 364.80 | P68: =K68*7.09% -> 850.80 | S68: =SUM(L68:Q68) -> 2,568.00 | T68: =SUM(L68+O68) -> 709.20 | U68: =SUM(S68:T68) -> 3,277.20 | V68: =K68-T68 -> 11,290.80
A69: =A68+1 -> 58 | B69: 023-0164982-4 | C69: SANTA | D69: MEDINA | E69: UNAP punta pescadora | F69: Conserje | G69: Contratado | H69: I | I69: 2/Enero/2021 | K69: 5,000.00 | L69: =K69*2.87% -> 143.50 | M69: =K69*7.1% -> 355.00 | N69: =K69*1.3% -> 65.00 | O69: =K69*3.04% -> 152.00 | P69: =K69*7.09% -> 354.50 | S69: =SUM(L69:Q69) -> 1,070.00 | T69: =SUM(L69+O69) -> 295.50 | U69: =SUM(S69:T69) -> 1,365.50 | V69: =K69-T69 -> 4,704.50
A70: =A69+1 -> 59 | B70: 024-0010756-7 | C70: PORFIRIO | D70: ZORRILLA | E70: Oficina Regional | F70: Sereno | G70: Contratado | H70: I | I70: 2/Enero/2021 | K70: 10,000.00 | L70: =K70*2.87% -> 287.00 | M70: =K70*7.1% -> 710.00 | N70: =K70*1.3% -> 130.00 | O70: =K70*3.04% -> 304.00 | P70: =K70*7.09% -> 709.00 | S70: =SUM(L70:Q70) -> 2,140.00 | T70: =SUM(L70+O70) -> 591.00 | U70: =SUM(S70:T70) -> 2,731.00 | V70: =K70-T70 -> 9,409.00
A71: =A70+1 -> 60 | B71: 402-2667422-0 | C71: ANA | D71: SOLANO | E71: Unap punta pescadora | F71: Conserje | G71: Contratado | H71: I | I71: 2/Enero/2021 | K71: 5,000.00 | L71: =K71*2.87% -> 143.50 | M71: =K71*7.1% -> 355.00 | N71: =K71*1.3% -> 65.00 | O71: =K71*3.04% -> 152.00 | P71: =K71*7.09% -> 354.50 | S71: =SUM(L71:Q71) -> 1,070.00 | T71: =SUM(L71+O71) -> 295.50 | U71: =SUM(S71:T71) -> 1,365.50 | V71: =K71-T71 -> 4,704.50
A72: =A71+1 -> 61 | B72: 027-00349737 | C72: ROLANDO GREGORIO | D72: PASCUAL | E72: unap Monte coca | F72: Sereno | G72: Contratado | H72: I | I72: 2021-01-04 | K72: 5,000.00 | L72: =K72*2.87% -> 143.50 | M72: =K72*7.1% -> 355.00 | N72: =K72*1.3% -> 65.00 | O72: =K72*3.04% -> 152.00 | P72: =K72*7.09% -> 354.50 | S72: =SUM(L72:Q72) -> 1,070.00 | T72: =SUM(L72+O72) -> 295.50 | U72: =SUM(S72:T72) -> 1,365.50 | V72: =K72-T72 -> 4,704.50
A73: =A72+1 -> 62 | B73: 008-0024361-0 | C73: GUILLERMO | D73: BAUTISTA RAMIREZ | E73: unap alejandro bass | F73: Sereno | G73: Contratado | H73: I | I73: 2021-01-05 | K73: 5,000.00 | L73: =K73*2.87% -> 143.50 | M73: =K73*7.1% -> 355.00 | N73: =K73*1.3% -> 65.00 | O73: =K73*3.04% -> 152.00 | P73: =K73*7.09% -> 354.50 | S73: =SUM(L73:Q73) -> 1,070.00 | T73: =SUM(L73+O73) -> 295.50 | U73: =SUM(S73:T73) -> 1,365.50 | V73: =K73-T73 -> 4,704.50
A74: =A73+1 -> 63 | B74: 023-0116102-8 | C74: SADRACK YRBIN | D74: GUILLEN | E74: Placer Bonito | F74: Sereno | G74: Contratado | H74: I | I74: 2021-01-05 | K74: 5,000.00 | L74: =K74*2.87% -> 143.50 | M74: =K74*7.1% -> 355.00 | N74: =K74*1.3% -> 65.00 | O74: =K74*3.04% -> 152.00 | P74: =K74*7.09% -> 354.50 | S74: =SUM(L74:Q74) -> 1,070.00 | T74: =SUM(L74+O74) -> 295.50 | U74: =SUM(S74:T74) -> 1,365.50 | V74: =K74-T74 -> 4,704.50
A75: =A74+1 -> 64 | B75: 402-1141418-6 | C75: EMILY PATRICIA | D75: RODRIGUEZ ORTEGA | E75: Gerencia de area | F75: Asistente de informacion | G75: Contratado | I75: 2021-01-06 | K75: 8,000.00 | L75: =K75*2.87% -> 229.60 | M75: =K75*7.1% -> 568.00 | N75: =K75*1.3% -> 104.00 | O75: =K75*3.04% -> 243.20 | P75: =K75*7.09% -> 567.20 | S75: =SUM(L75:Q75) -> 1,712.00 | T75: =SUM(L75+O75) -> 472.80 | U75: =SUM(S75:T75) -> 2,184.80 | V75: =K75-T75 -> 7,527.20
A76: =A75+1 -> 65 | B76: 049-0042143-1 | C76: DOROTEO | D76: DE LA CRUZ CARRASCO | E76: Dpto. de Odontologia | F76: Seguridad | G76: Contratado | H76: I | I76: 2021-10-01 | K76: 7,000.00 | L76: =K76*2.87% -> 200.90 | M76: =K76*7.1% -> 497.00 | N76: =K76*1.3% -> 91.00 | O76: =K76*3.04% -> 212.80 | P76: =K76*7.09% -> 496.30 | S76: =SUM(L76:Q76) -> 1,498.00 | T76: =SUM(L76+O76) -> 413.70 | U76: =SUM(S76:T76) -> 1,911.70 | V76: =K76-T76 -> 6,586.30
A77: =A76+1 -> 66 | B77: 023-0004082-7 | C77: ROBERTO ANTONIO | D77: DE LA CRUZ MOYA | E77: Oficina Regional | F77: Chofer | G77: Contratado | H77: I | I77: 2021-10-01 | K77: 18,000.00 | L77: =K77*2.87% -> 516.60 | M77: =K77*7.1% -> 1,278.00 | N77: =K77*1.3% -> 234.00 | O77: =K77*3.04% -> 547.20 | P77: =K77*7.09% -> 1,276.20 | S77: =SUM(L77:Q77) -> 3,852.00 | T77: =SUM(L77+O77) -> 1,063.80 | U77: =SUM(S77:T77) -> 4,915.80 | V77: =K77-T77 -> 16,936.20
A78: =A77+1 -> 67 | B78: 001-1040251-8 | C78: MANOLO | D78: MARTINEZ | E78: Unap Villa Faro | F78: Seguridad | G78: Contratado | H78: I | I78: 2021-11-01 | K78: 5,000.00 | L78: =K78*2.87% -> 143.50 | M78: =K78*7.1% -> 355.00 | N78: =K78*1.3% -> 65.00 | O78: =K78*3.04% -> 152.00 | P78: =K78*7.09% -> 354.50 | S78: =SUM(L78:Q78) -> 1,070.00 | T78: =SUM(L78+O78) -> 295.50 | U78: =SUM(S78:T78) -> 1,365.50 | V78: =K78-T78 -> 4,704.50
A79: =A78+1 -> 68 | B79: 024-0027728-7 | C79: JOSE ANIIBAL | D79: FREANCISCO DANIEL | E79: Unap Paloma | F79: Seguridad | G79: Contratado | H79: I | I79: 2021-12-01 | K79: 5,000.00 | L79: =K79*2.87% -> 143.50 | M79: =K79*7.1% -> 355.00 | N79: =K79*1.3% -> 65.00 | O79: =K79*3.04% -> 152.00 | P79: =K79*7.09% -> 354.50 | S79: =SUM(L79:Q79) -> 1,070.00 | T79: =SUM(L79+O79) -> 295.50 | U79: =SUM(S79:T79) -> 1,365.50 | V79: =K79-T79 -> 4,704.50
A80: =A79+1 -> 69 | B80: 025-0001585-0 | C80: MIGUEL | D80: NUÑEZ MAZARA | E80: Oficina Regional | F80: Seguridad | G80: Contratado | H80: I | I80: 2021-12-01 | K80: 7,000.00 | L80: =K80*2.87% -> 200.90 | M80: =K80*7.1% -> 497.00 | N80: =K80*1.3% -> 91.00 | O80: =K80*3.04% -> 212.80 | P80: =K80*7.09% -> 496.30 | S80: =SUM(L80:Q80) -> 1,498.00 | T80: =SUM(L80+O80) -> 413.70 | U80: =SUM(S80:T80) -> 1,911.70 | V80: =K80-T80 -> 6,586.30
A81: =A80+1 -> 70 | B81: 023-0084491-3 | C81: HIPOLITO | D81: TOLENTINO | E81: Unap Villa Faro | F81: Seguridad | G81: Contratado | H81: I | I81: 2022-03-08 | K81: 5,000.00 | L81: =K81*2.87% -> 143.50 | M81: =K81*7.1% -> 355.00 | N81: =K81*1.3% -> 65.00 | O81: =K81*3.04% -> 152.00 | P81: =K81*7.09% -> 354.50 | S81: =SUM(L81:Q81) -> 1,070.00 | T81: =SUM(L81+O81) -> 295.50 | U81: =SUM(S81:T81) -> 1,365.50 | V81: =K81-T81 -> 4,704.50
A82: =A81+1 -> 71 | B82: 023-0020611-3 | C82: MANUEL DE JESUS | D82: LORA | E82: Oficina Regional | F82: Seguridad | G82: Contratado | H82: I | I82: 2022-11-01 | K82: 7,000.00 | L82: =K82*2.87% -> 200.90 | M82: =K82*7.1% -> 497.00 | N82: =K82*1.3% -> 91.00 | O82: =K82*3.04% -> 212.80 | P82: =K82*7.09% -> 496.30 | S82: =SUM(L82:Q82) -> 1,498.00 | T82: =SUM(L82+O82) -> 413.70 | U82: =SUM(S82:T82) -> 1,911.70 | V82: =K82-T82 -> 6,586.30
A83: =A82+1 -> 72 | B83: 023-0143527-3 | C83: DIGNA | D83: ROSARIO JAVIER | E83: UNAP Santa Fe | F83: Conserje | G83: Contratado | H83: I | I83: 2022-12-01 | K83: 5,000.00 | L83: =K83*2.87% -> 143.50 | M83: =K83*7.1% -> 355.00 | N83: =K83*1.3% -> 65.00 | O83: =K83*3.04% -> 152.00 | P83: =K83*7.09% -> 354.50 | S83: =SUM(L83:Q83) -> 1,070.00 | T83: =SUM(L83+O83) -> 295.50 | U83: =SUM(S83:T83) -> 1,365.50 | V83: =K83-T83 -> 4,704.50
A84: =A83+1 -> 73 | B84: 011-714807-2 | C84: AIDA | D84: PEREZ NATERA | E84: Unap las Goutier | F84: Conserje | G84: Contratado | H84: I | I84: 2023-03-01 | K84: 5,000.00 | L84: =K84*2.87% -> 143.50 | M84: =K84*7.1% -> 355.00 | N84: =K84*1.3% -> 65.00 | O84: =K84*3.04% -> 152.00 | P84: =K84*7.09% -> 354.50 | S84: =SUM(L84:Q84) -> 1,070.00 | T84: =SUM(L84+O84) -> 295.50 | U84: =SUM(S84:T84) -> 1,365.50 | V84: =K84-T84 -> 4,704.50
A85: =A84+1 -> 74 | B85: 402-2020200-2 | C85: ESTEBANIA | D85: MELLA WILLIAMS | E85: CPN IDSS Consuelo | F85: Conserje | G85: Contratado | H85: I | I85: 2023-04-01 | K85: 5,000.00 | L85: =K85*2.87% -> 143.50 | M85: =K85*7.1% -> 355.00 | N85: =K85*1.3% -> 65.00 | O85: =K85*3.04% -> 152.00 | P85: =K85*7.09% -> 354.50 | S85: =SUM(L85:Q85) -> 1,070.00 | T85: =SUM(L85+O85) -> 295.50 | U85: =SUM(S85:T85) -> 1,365.50 | V85: =K85-T85 -> 4,704.50
A86: =A85+1 -> 75 | B86: 402-1112745-7 | C86: DARLENYS MARIA | D86: SANTANA JIMENEZ | E86: CPN Santa Clara | F86: Conserje | G86: Contratado | H86: I | I86: 2024-03-01 | K86: 6,000.00 | L86: =K86*2.87% -> 172.20 | M86: =K86*7.1% -> 426.00 | N86: =K86*1.3% -> 78.00 | O86: =K86*3.04% -> 182.40 | P86: =K86*7.09% -> 425.40 | S86: =SUM(L86:Q86) -> 1,284.00 | T86: =SUM(L86+O86) -> 354.60 | U86: =SUM(S86:T86) -> 1,638.60 | V86: =K86-T86 -> 5,645.40
A87: =A86+1 -> 76 | B87: 402-2555106-4 | C87: ANTELINA ENEROLIZA | D87: CANDELARIO BAEZ | E87: Centro de Diagnosto SPM | F87: Conserje | G87: Contratado | H87: I | I87: 2024-07-01 | K87: 5,000.00 | L87: =K87*2.87% -> 143.50 | M87: =K87*7.1% -> 355.00 | N87: =K87*1.3% -> 65.00 | O87: =K87*3.04% -> 152.00 | P87: =K87*7.09% -> 354.50 | S87: =SUM(L87:Q87) -> 1,070.00 | T87: =SUM(L87+O87) -> 295.50 | U87: =SUM(S87:T87) -> 1,365.50 | V87: =K87-T87 -> 4,704.50
A88: =A87+1 -> 77 | B88: 017-0019300-4 | C88: ANGELA ALT. | D88: VALENZUELA | E88: CPN Buen Pastor | F88: Conserje | G88: Contratado | H88: I | I88: 2024-07-01 | K88: 5,000.00 | L88: =K88*2.87% -> 143.50 | M88: =K88*7.1% -> 355.00 | N88: =K88*1.3% -> 65.00 | O88: =K88*3.04% -> 152.00 | P88: =K88*7.09% -> 354.50 | S88: =SUM(L88:Q88) -> 1,070.00 | T88: =SUM(L88+O88) -> 295.50 | U88: =SUM(S88:T88) -> 1,365.50 | V88: =K88-T88 -> 4,704.50
A89: =A88+1 -> 78 | B89: 023-0030748-1 | C89: PASCUALA ESTEBANIA | D89: MARCHENA SABINO | E89: CPN Las Piedras | F89: Conserje | G89: Contratado | H89: I | I89: 2024-07-01 | K89: 5,000.00 | L89: =K89*2.87% -> 143.50 | M89: =K89*7.1% -> 355.00 | N89: =K89*1.3% -> 65.00 | O89: =K89*3.04% -> 152.00 | P89: =K89*7.09% -> 354.50 | S89: =SUM(L89:Q89) -> 1,070.00 | T89: =SUM(L89+O89) -> 295.50 | U89: =SUM(S89:T89) -> 1,365.50 | V89: =K89-T89 -> 4,704.50
A90: =A89+1 -> 79 | B90: 023-0091971-5 | C90: MARITZA | D90: GONZALEZ FRIAS | E90: CPN VILLA FARO | F90: Conserje | G90: Contratado | H90: I | I90: 2024-07-01 | K90: 5,000.00 | L90: =K90*2.87% -> 143.50 | M90: =K90*7.1% -> 355.00 | N90: =K90*1.3% -> 65.00 | O90: =K90*3.04% -> 152.00 | P90: =K90*7.09% -> 354.50 | S90: =SUM(L90:Q90) -> 1,070.00 | T90: =SUM(L90+O90) -> 295.50 | U90: =SUM(S90:T90) -> 1,365.50 | V90: =K90-T90 -> 4,704.50
A91: =A90+1 -> 80 | B91: 027-0011810-8 | C91: JULIO | D91: NAVARRO | E91: CPN Porvenir | F91: Sereno | G91: Contratado | H91: I | I91: 2024-07-01 | K91: 5,000.00 | L91: =K91*2.87% -> 143.50 | M91: =K91*7.1% -> 355.00 | N91: =K91*1.3% -> 65.00 | O91: =K91*3.04% -> 152.00 | P91: =K91*7.09% -> 354.50 | S91: =SUM(L91:Q91) -> 1,070.00 | T91: =SUM(L91+O91) -> 295.50 | U91: =SUM(S91:T91) -> 1,365.50 | V91: =K91-T91 -> 4,704.50
A92: =A91+1 -> 81 | B92: 402-2105368-5 | C92: CARMEN MARTINA | D92: BAUTISTA O. | E92: UNAP JAPON | F92: Conserje | G92: Contratado | H92: I | I92: 2024-09-01 | K92: 5,000.00 | L92: =K92*2.87% -> 143.50 | M92: =K92*7.1% -> 355.00 | N92: =K92*1.3% -> 65.00 | O92: =K92*3.04% -> 152.00 | P92: =K92*7.09% -> 354.50 | S92: =SUM(L92:Q92) -> 1,070.00 | T92: =SUM(L92+O92) -> 295.50 | U92: =SUM(S92:T92) -> 1,365.50 | V92: =K92-T92 -> 4,704.50
A93: =A92+1 -> 82 | B93: 023-0075532-5 | C93: MIGUEL | D93: RIVERA DE LA CRUZ | E93: Unap barrio Lindo SPM | F93: Seguridad | G93: Contratado | H93: 1 | I93: 2025-01-02 | K93: 6,000.00 | L93: =K93*2.87% -> 172.20 | M93: =K93*7.1% -> 426.00 | N93: =K93*1.3% -> 78.00 | O93: =K93*3.04% -> 182.40 | P93: =K93*7.09% -> 425.40 | S93: =SUM(L93:Q93) -> 1,284.00 | T93: =SUM(L93+O93) -> 354.60 | U93: =SUM(S93:T93) -> 1,638.60 | V93: =K93-T93 -> 5,645.40
A94: =A93+1 -> 83 | B94: 023-0142481-4 | C94: BETANIA | D94: VALDEZ MARIA | E94: CPN CAMARA JUNIOR | F94: Conserje | G94: Contratado | H94: 1 | I94: 2025-02-03 | K94: 5,000.00 | L94: =K94*2.87% -> 143.50 | M94: =K94*7.1% -> 355.00 | N94: =K94*1.3% -> 65.00 | O94: =K94*3.04% -> 152.00 | P94: =K94*7.09% -> 354.50 | S94: =SUM(L94:Q94) -> 1,070.00 | T94: =SUM(L94+O94) -> 295.50 | U94: =SUM(S94:T94) -> 1,365.50 | V94: =K94-T94 -> 4,704.50
A95: =A94+1 -> 84 | B95: 023-0026201-7 | C95: ROSELIS HERENIA | D95: ORTIZ DE LA CRUZ | E95: CPN EL BRISAL | F95: Conserje | G95: Contratado | H95: 1 | I95: 2025-02-03 | K95: 5,000.00 | L95: =K95*2.87% -> 143.50 | M95: =K95*7.1% -> 355.00 | N95: =K95*1.3% -> 65.00 | O95: =K95*3.04% -> 152.00 | P95: =K95*7.09% -> 354.50 | S95: =SUM(L95:Q95) -> 1,070.00 | T95: =SUM(L95+O95) -> 295.50 | U95: =SUM(S95:T95) -> 1,365.50 | V95: =K95-T95 -> 4,704.50
A96: =A95+1 -> 85 | B96: 0230124918-7 | C96: JUANA LUCRECIA | D96: WECXS DAVID | E96: CPN BATEY ANGELINA | F96: Conserje | G96: Contratado | H96: 1 | I96: 2025-02-03 | K96: 5,000.00 | L96: =K96*2.87% -> 143.50 | M96: =K96*7.1% -> 355.00 | N96: =K96*1.3% -> 65.00 | O96: =K96*3.04% -> 152.00 | P96: =K96*7.09% -> 354.50 | S96: =SUM(L96:Q96) -> 1,070.00 | T96: =SUM(L96+O96) -> 295.50 | U96: =SUM(S96:T96) -> 1,365.50 | V96: =K96-T96 -> 4,704.50
A97: =A96+1 -> 86 | B97: 028-0036105-3 | C97: HECTOR JULIO | D97: CASTILLO ROJAS | E97: CPN EL BRISAL | F97: Sereno | G97: Contratado | H97: 1 | I97: 2025-04-01 | K97: 5,000.00 | L97: =K97*2.87% -> 143.50 | M97: =K97*7.1% -> 355.00 | N97: =K97*1.3% -> 65.00 | O97: =K97*3.04% -> 152.00 | P97: =K97*7.09% -> 354.50 | S97: =SUM(L97:Q97) -> 1,070.00 | T97: =SUM(L97+O97) -> 295.50 | U97: =SUM(S97:T97) -> 1,365.50 | V97: =K97-T97 -> 4,704.50
A98: =A97+1 -> 87 | B98: 402-1142182-7 | C98: LUISA MARIA | D98: CASTILLO | E98: Centro de Diagnostico | F98: conserje | G98: Contratado | H98: 1 | I98: 2025-05-01 | K98: 5,000.00 | L98: =K98*2.87% -> 143.50 | M98: =K98*7.1% -> 355.00 | N98: =K98*1.3% -> 65.00 | O98: =K98*3.04% -> 152.00 | P98: =K98*7.09% -> 354.50 | S98: =SUM(L98:Q98) -> 1,070.00 | T98: =SUM(L98+O98) -> 295.50 | U98: =SUM(S98:T98) -> 1,365.50 | V98: =K98-T98 -> 4,704.50
A99: =A98+1 -> 88 | B99: 023-0158598-6 | C99: MARIA VANESSA | D99: MEJIA | E99: CPN Punta de garza | F99: Conserje | G99: Contratado | H99: 1 | I99: 2025-05-01 | K99: 5,000.00 | L99: =K99*2.87% -> 143.50 | M99: =K99*7.1% -> 355.00 | N99: =K99*1.3% -> 65.00 | O99: =K99*3.04% -> 152.00 | P99: =K99*7.09% -> 354.50 | S99: =SUM(L99:Q99) -> 1,070.00 | T99: =SUM(L99+O99) -> 295.50 | U99: =SUM(S99:T99) -> 1,365.50 | V99: =K99-T99 -> 4,704.50
A100: =A99+1 -> 89 | B100: 138-0008474-4 | C100: FRANCIA | D100: BENITEZ BASILIO | E100: Unap esperanza | F100: conserje | G100: Contratado | H100: 1 | I100: 2025-11-01 | K100: 5,000.00 | L100: =K100*2.87% -> 143.50 | M100: =K100*7.1% -> 355.00 | N100: =K100*1.3% -> 65.00 | O100: =K100*3.04% -> 152.00 | P100: =K100*7.09% -> 354.50 | S100: =SUM(L100:Q100) -> 1,070.00 | T100: =SUM(L100+O100) -> 295.50 | U100: =SUM(S100:T100) -> 1,365.50 | V100: =K100-T100 -> 4,704.50
A101: =A100+1 -> 90 | B101: 027-0005223-2 | C101: CARMEN I. | D101: SANTANA P. | E101: Clinica Morquecho | F101: Aux. de enfermeria | G101: Contratado | H101: III | I101: 2007-05-08 | K101: 11,786.00 | L101: =K101*2.87% -> 338.26 | M101: =K101*7.1% -> 836.81 | N101: =K101*1.3% -> 153.22 | O101: =K101*3.04% -> 358.29 | P101: =K101*7.09% -> 835.63 | S101: =SUM(L101:Q101) -> 2,522.20 | T101: =SUM(L101+O101) -> 696.55 | U101: =SUM(S101:T101) -> 3,218.76 | V101: =K101-T101 -> 11,089.45
A102: =A101+1 -> 91 | B102: 100-0007282-6 | C102: SULINDA | D102: MOTA DE SALAS | E102: Clinica Yanigua | F102: Conserje | G102: Contratado | H102: I | I102: 2007-03-01 | K102: 5,000.00 | L102: =K102*2.87% -> 143.50 | M102: =K102*7.1% -> 355.00 | N102: =K102*1.3% -> 65.00 | O102: =K102*3.04% -> 152.00 | P102: =K102*7.09% -> 354.50 | S102: =SUM(L102:Q102) -> 1,070.00 | T102: =SUM(L102+O102) -> 295.50 | U102: =SUM(S102:T102) -> 1,365.50 | V102: =K102-T102 -> 4,704.50
A103: =A102+1 -> 92 | B103: 100-0002222-7 | C103: DOMINGO A. | D103: PEGUERO LUNA | E103: Clinica Yanigua | F103: Viglante | G103: Contratado | H103: I | I103: 2007-06-01 | K103: 5,000.00 | L103: =K103*2.87% -> 143.50 | M103: =K103*7.1% -> 355.00 | N103: =K103*1.3% -> 65.00 | O103: =K103*3.04% -> 152.00 | P103: =K103*7.09% -> 354.50 | S103: =SUM(L103:Q103) -> 1,070.00 | T103: =SUM(L103+O103) -> 295.50 | U103: =SUM(S103:T103) -> 1,365.50 | V103: =K103-T103 -> 4,704.50
A104: =A103+1 -> 93 | B104: 100-0000817-6 | C104: MARIA | D104: NOLASCO | E104: Clinica El valle | F104: Conserje | G104: Contratado | H104: I | I104: 2007-07-02 | K104: 7,000.00 | L104: =K104*2.87% -> 200.90 | M104: =K104*7.1% -> 497.00 | N104: =K104*1.3% -> 91.00 | O104: =K104*3.04% -> 212.80 | P104: =K104*7.09% -> 496.30 | S104: =SUM(L104:Q104) -> 1,498.00 | T104: =SUM(L104+O104) -> 413.70 | U104: =SUM(S104:T104) -> 1,911.70 | V104: =K104-T104 -> 6,586.30
A105: =A104+1 -> 94 | B105: 100-0000180-9 | C105: NIURKA A. | D105: AQUINO JAVIER | E105: Hospital el Valle | F105: Tecnica Farmacia | G105: Contratado | H105: III | I105: 2007-07-02 | K105: 11,786.00 | L105: =K105*2.87% -> 338.26 | M105: =K105*7.1% -> 836.81 | N105: =K105*1.3% -> 153.22 | O105: =K105*3.04% -> 358.29 | P105: =K105*7.09% -> 835.63 | S105: =SUM(L105:Q105) -> 2,522.20 | T105: =SUM(L105+O105) -> 696.55 | U105: =SUM(S105:T105) -> 3,218.76 | V105: =K105-T105 -> 11,089.45
A106: =A105+1 -> 95 | B106: 023-0002962-2 | C106: ZENOVIA | D106: TRINIDAD MARTINEZ | E106: Villa Navarro | F106: Conserje | G106: Contratado | H106: I | I106: 2007-07-18 | K106: 5,000.00 | L106: =K106*2.87% -> 143.50 | M106: =K106*7.1% -> 355.00 | N106: =K106*1.3% -> 65.00 | O106: =K106*3.04% -> 152.00 | P106: =K106*7.09% -> 354.50 | S106: =SUM(L106:Q106) -> 1,070.00 | T106: =SUM(L106+O106) -> 295.50 | U106: =SUM(S106:T106) -> 1,365.50 | V106: =K106-T106 -> 4,704.50
A107: =A106+1 -> 96 | B107: 027-0003867-8 | C107: MIGUEL ISABEL | D107: VASQUEZ | E107: Oficina area | F107: Chofer | G107: Contratado | H107: I | I107: 2007-07-23 | K107: 8,000.00 | L107: =K107*2.87% -> 229.60 | M107: =K107*7.1% -> 568.00 | N107: =K107*1.3% -> 104.00 | O107: =K107*3.04% -> 243.20 | P107: =K107*7.09% -> 567.20 | S107: =SUM(L107:Q107) -> 1,712.00 | T107: =SUM(L107+O107) -> 472.80 | U107: =SUM(S107:T107) -> 2,184.80 | V107: =K107-T107 -> 7,527.20
A108: =A107+1 -> 97 | B108: 027-0003530-2 | C108: FELIX | D108: CANARIO | E108: Unap Ondina | F108: Sereno | G108: Contratado | H108: I | I108: 2007-10-01 | K108: 5,000.00 | L108: =K108*2.87% -> 143.50 | M108: =K108*7.1% -> 355.00 | N108: =K108*1.3% -> 65.00 | O108: =K108*3.04% -> 152.00 | P108: =K108*7.09% -> 354.50 | S108: =SUM(L108:Q108) -> 1,070.00 | T108: =SUM(L108+O108) -> 295.50 | U108: =SUM(S108:T108) -> 1,365.50 | V108: =K108-T108 -> 4,704.50
A109: =A108+1 -> 98 | B109: 027-0028845-5 | C109: ELSA AURORA | D109: ZORRILLA | E109: UNAP Punta de Garza | F109: Conserje | G109: Contratado | H109: I | I109: 2008-02-21 | K109: 5,000.00 | L109: =K109*2.87% -> 143.50 | M109: =K109*7.1% -> 355.00 | N109: =K109*1.3% -> 65.00 | O109: =K109*3.04% -> 152.00 | P109: =K109*7.09% -> 354.50 | S109: =SUM(L109:Q109) -> 1,070.00 | T109: =SUM(L109+O109) -> 295.50 | U109: =SUM(S109:T109) -> 1,365.50 | V109: =K109-T109 -> 4,704.50
A110: =A109+1 -> 99 | B110: 027-0002151-8 | C110: CARMEN | D110: DE LA CRUZ TORREZ | E110: Unap La China | F110: Conserje | G110: Contratado | H110: I | I110: 2008-03-17 | K110: 5,000.00 | L110: =K110*2.87% -> 143.50 | M110: =K110*7.1% -> 355.00 | N110: =K110*1.3% -> 65.00 | O110: =K110*3.04% -> 152.00 | P110: =K110*7.09% -> 354.50 | S110: =SUM(L110:Q110) -> 1,070.00 | T110: =SUM(L110+O110) -> 295.50 | U110: =SUM(S110:T110) -> 1,365.50 | V110: =K110-T110 -> 4,704.50
A111: =A110+1 -> 100 | B111: 027-0039926-0 | C111: YAQUELIN | D111: CASTILLO MONEGRO | E111: Unap la Javilla | F111: Conserje | G111: Contratado | H111: I | I111: 2008-05-01 | K111: 5,000.00 | L111: =K111*2.87% -> 143.50 | M111: =K111*7.1% -> 355.00 | N111: =K111*1.3% -> 65.00 | O111: =K111*3.04% -> 152.00 | P111: =K111*7.09% -> 354.50 | S111: =SUM(L111:Q111) -> 1,070.00 | T111: =SUM(L111+O111) -> 295.50 | U111: =SUM(S111:T111) -> 1,365.50 | V111: =K111-T111 -> 4,704.50
A112: =A111+1 -> 101 | B112: 027-0042030-6 | C112: YARELIS | D112: GOMEZ REYES | E112: Unap la plaza | F112: Conserje | G112: Contratado | H112: I | I112: 2008-08-01 | K112: 5,000.00 | L112: =K112*2.87% -> 143.50 | M112: =K112*7.1% -> 355.00 | N112: =K112*1.3% -> 65.00 | O112: =K112*3.04% -> 152.00 | P112: =K112*7.09% -> 354.50 | S112: =SUM(L112:Q112) -> 1,070.00 | T112: =SUM(L112+O112) -> 295.50 | U112: =SUM(S112:T112) -> 1,365.50 | V112: =K112-T112 -> 4,704.50
A113: =A112+1 -> 102 | B113: 023-0110894-6 | C113: RUDELANIA | D113: OVALLE VEGA | E113: Unap la plaza | F113: Medico asistente | G113: Contratado | H113: IV | I113: 2008-09-01 | K113: 20,000.00 | L113: =K113*2.87% -> 574.00 | M113: =K113*7.1% -> 1,420.00 | N113: =K113*1.3% -> 260.00 | O113: =K113*3.04% -> 608.00 | P113: =K113*7.09% -> 1,418.00 | S113: =SUM(L113:Q113) -> 4,280.00 | T113: =SUM(L113+O113) -> 1,182.00 | U113: =SUM(S113:T113) -> 5,462.00 | V113: =K113-T113 -> 18,818.00
A114: =A113+1 -> 103 | B114: 027-0024756-8 | C114: RAFAEL | D114: GONZALEZ | E114: Unap km 15 Hato Mayor | F114: Sereno | G114: Contratado | H114: I | I114: 2008-11-01 | K114: 5,000.00 | L114: =K114*2.87% -> 143.50 | M114: =K114*7.1% -> 355.00 | N114: =K114*1.3% -> 65.00 | O114: =K114*3.04% -> 152.00 | P114: =K114*7.09% -> 354.50 | S114: =SUM(L114:Q114) -> 1,070.00 | T114: =SUM(L114+O114) -> 295.50 | U114: =SUM(S114:T114) -> 1,365.50 | V114: =K114-T114 -> 4,704.50
A115: =A114+1 -> 104 | B115: 402-2032423-6 | C115: CARINYS MARIEL | D115: LOPEZ | E115: Oficina area | F115: Promotora de salud | G115: Contratado | H115: II | I115: 2009-02-01 | K115: 6,900.00 | L115: =K115*2.87% -> 198.03 | M115: =K115*7.1% -> 489.90 | N115: =K115*1.3% -> 89.70 | O115: =K115*3.04% -> 209.76 | P115: =K115*7.09% -> 489.21 | S115: =SUM(L115:Q115) -> 1,476.60 | T115: =SUM(L115+O115) -> 407.79 | U115: =SUM(S115:T115) -> 1,884.39 | V115: =K115-T115 -> 6,492.21
A116: =A115+1 -> 105 | B116: 100-0004525-1 | C116: TAIRA MARIA | D116: GONZALEZ | E116: Hospital el valle | F116: Farmaceutica | G116: Contratado | H116: IV | I116: 2009-02-01 | K116: 18,400.00 | L116: =K116*2.87% -> 528.08 | M116: =K116*7.1% -> 1,306.40 | N116: =K116*1.3% -> 239.20 | O116: =K116*3.04% -> 559.36 | P116: =K116*7.09% -> 1,304.56 | S116: =SUM(L116:Q116) -> 3,937.60 | T116: =SUM(L116+O116) -> 1,087.44 | U116: =SUM(S116:T116) -> 5,025.04 | V116: =K116-T116 -> 17,312.56
A117: =A116+1 -> 106 | B117: 138-0007689-8 | C117: ISRAEL | D117: VASQUEZ ALEXANDER | E117: Gerencia de area | F117: Sereno | G117: Contratado | H117: I | I117: 2009-12-01 | K117: 5,000.00 | L117: =K117*2.87% -> 143.50 | M117: =K117*7.1% -> 355.00 | N117: =K117*1.3% -> 65.00 | O117: =K117*3.04% -> 152.00 | P117: =K117*7.09% -> 354.50 | S117: =SUM(L117:Q117) -> 1,070.00 | T117: =SUM(L117+O117) -> 295.50 | U117: =SUM(S117:T117) -> 1,365.50 | V117: =K117-T117 -> 4,704.50
A118: =A117+1 -> 107 | B118: 402-4018039-4 | C118: GAUDY | D118: CRISOSTOMO | E118: Unap ondina | F118: Conserje | G118: Contratado | H118: I | I118: 2021-11-01 | K118: 5,000.00 | L118: =K118*2.87% -> 143.50 | M118: =K118*7.1% -> 355.00 | N118: =K118*1.3% -> 65.00 | O118: =K118*3.04% -> 152.00 | P118: =K118*7.09% -> 354.50 | S118: =SUM(L118:Q118) -> 1,070.00 | T118: =SUM(L118+O118) -> 295.50 | U118: =SUM(S118:T118) -> 1,365.50 | V118: =K118-T118 -> 4,704.50
A119: =A118+1 -> 108 | B119: 402-1195588-1 | C119: RICHARD | D119: SANTANA PADILLA | E119: Gerencia de area | F119: Mensajero | G119: Contratado | H119: I | I119: 2022-04-01 | K119: 7,000.00 | L119: =K119*2.87% -> 200.90 | M119: =K119*7.1% -> 497.00 | N119: =K119*1.3% -> 91.00 | O119: =K119*3.04% -> 212.80 | P119: =K119*7.09% -> 496.30 | S119: =SUM(L119:Q119) -> 1,498.00 | T119: =SUM(L119+O119) -> 413.70 | U119: =SUM(S119:T119) -> 1,911.70 | V119: =K119-T119 -> 6,586.30
A120: =A119+1 -> 109 | B120: 027-0017851-6 | C120: FRANCIASCA | D120: REYES LOPEZ | E120: Unap Morquecho | F120: Conserje | G120: Contratado | H120: I | I120: 2022-10-01 | K120: 5,000.00 | L120: =K120*2.87% -> 143.50 | M120: =K120*7.1% -> 355.00 | N120: =K120*1.3% -> 65.00 | O120: =K120*3.04% -> 152.00 | P120: =K120*7.09% -> 354.50 | S120: =SUM(L120:Q120) -> 1,070.00 | T120: =SUM(L120+O120) -> 295.50 | U120: =SUM(S120:T120) -> 1,365.50 | V120: =K120-T120 -> 4,704.50
A121: =A120+1 -> 110 | B121: 027-0030140-7 | C121: MAGALIS | D121: JIMENEZ | E121: Unap jalonga | F121: Conserje | G121: Contratado | H121: I | I121: 2022-10-01 | K121: 5,000.00 | L121: =K121*2.87% -> 143.50 | M121: =K121*7.1% -> 355.00 | N121: =K121*1.3% -> 65.00 | O121: =K121*3.04% -> 152.00 | P121: =K121*7.09% -> 354.50 | S121: =SUM(L121:Q121) -> 1,070.00 | T121: =SUM(L121+O121) -> 295.50 | U121: =SUM(S121:T121) -> 1,365.50 | V121: =K121-T121 -> 4,704.50
A122: =A121+1 -> 111 | B122: 027-0046696-0 | C122: DULCE MARIA | D122: DOMINGUEZ PEÑA | E122: Unap Km 15 | F122: Conserje | G122: Contratado | H122: I | I122: 2022-10-01 | K122: 5,000.00 | L122: =K122*2.87% -> 143.50 | M122: =K122*7.1% -> 355.00 | N122: =K122*1.3% -> 65.00 | O122: =K122*3.04% -> 152.00 | P122: =K122*7.09% -> 354.50 | S122: =SUM(L122:Q122) -> 1,070.00 | T122: =SUM(L122+O122) -> 295.50 | U122: =SUM(S122:T122) -> 1,365.50 | V122: =K122-T122 -> 4,704.50
A123: =A122+1 -> 112 | B123: 027-0012399-1 | C123: IRMA GRISEL | D123: REYES FELICIANO | E123: Unap la Sierra | F123: Conserje | G123: Contratado | H123: I | I123: 2022-10-01 | K123: 5,000.00 | L123: =K123*2.87% -> 143.50 | M123: =K123*7.1% -> 355.00 | N123: =K123*1.3% -> 65.00 | O123: =K123*3.04% -> 152.00 | P123: =K123*7.09% -> 354.50 | S123: =SUM(L123:Q123) -> 1,070.00 | T123: =SUM(L123+O123) -> 295.50 | U123: =SUM(S123:T123) -> 1,365.50 | V123: =K123-T123 -> 4,704.50
A124: =A123+1 -> 113 | B124: 402-1139481-8 | C124: RAFAEL | D124: FLOYD POLICIA | E124: Unap jalonga | F124: Sereno | G124: Contratado | H124: I | I124: 2022-11-01 | K124: 5,000.00 | L124: =K124*2.87% -> 143.50 | M124: =K124*7.1% -> 355.00 | N124: =K124*1.3% -> 65.00 | O124: =K124*3.04% -> 152.00 | P124: =K124*7.09% -> 354.50 | S124: =SUM(L124:Q124) -> 1,070.00 | T124: =SUM(L124+O124) -> 295.50 | U124: =SUM(S124:T124) -> 1,365.50 | V124: =K124-T124 -> 4,704.50
A125: =A124+1 -> 114 | B125: 067-0013604-4 | C125: JULIO ADRIANO | D125: DIAZ ACOSTA | E125: Unap Magua | F125: Sereno | G125: Contratado | H125: I | I125: 2022-12-01 | K125: 5,000.00 | L125: 143.50 | M125: 355.00 | N125: 65.00 | O125: 152.00 | P125: 354.50 | S125: 1,070.00 | T125: 295.50 | U125: 1,365.50 | V125: 4,704.50
A126: =A125+1 -> 115 | B126: 027-0015148-9 | C126: JUAN | D126: JAVIER | E126: Unap jaloga | F126: Sereno | G126: Contratado | H126: 1 | I126: 2023-08-01 | K126: 5,000.00 | L126: =K126*2.87% -> 143.50 | M126: =K126*7.1% -> 355.00 | N126: =K126*1.3% -> 65.00 | O126: =K126*3.04% -> 152.00 | P126: =K126*7.09% -> 354.50 | S126: =SUM(L126:Q126) -> 1,070.00 | T126: =SUM(L126+O126) -> 295.50 | U126: =SUM(S126:T126) -> 1,365.50 | V126: =K126-T126 -> 4,704.50
A127: =A126+1 -> 116 | B127: 402-1030578-1 | C127: ISMAEL | D127: GARCIA SEVERINO | E127: Unap yerba buena | F127: Sereno | G127: Contratado | H127: 1 | I127: 2024-02-01 | K127: 5,000.00 | L127: =K127*2.87% -> 143.50 | M127: =K127*7.1% -> 355.00 | N127: =K127*1.3% -> 65.00 | O127: =K127*3.04% -> 152.00 | P127: =K127*7.09% -> 354.50 | S127: =SUM(L127:Q127) -> 1,070.00 | T127: =SUM(L127+O127) -> 295.50 | U127: =SUM(S127:T127) -> 1,365.50 | V127: =K127-T127 -> 4,704.50
A128: =A127+1 -> 117 | B128: 4021825057-5 | C128: CAROLIN FERNANDA | D128: NIEVES CANELA | E128: Gerencia de Area | F128: Digitadora | G128: Contratado | H128: 1 | I128: 2025-02-02 | K128: 10,000.00 | L128: =K128*2.87% -> 287.00 | M128: =K128*7.1% -> 710.00 | N128: =K128*1.3% -> 130.00 | O128: =K128*3.04% -> 304.00 | P128: =K128*7.09% -> 709.00 | S128: =SUM(L128:Q128) -> 2,140.00 | T128: =SUM(L128+O128) -> 591.00 | U128: =SUM(S128:T128) -> 2,731.00 | V128: =K128-T128 -> 9,409.00
A129: =A128+1 -> 118 | B129: 067-0008097-8 | C129: PEDRITO | D129: DE LA ROSA | E129: UNP las caÑitas | F129: Vigilante | G129: Contratado | H129: 1 | I129: 2025-04-01 | K129: 5,000.00 | L129: =K129*2.87% -> 143.50 | M129: =K129*7.1% -> 355.00 | N129: =K129*1.3% -> 65.00 | O129: =K129*3.04% -> 152.00 | P129: =K129*7.09% -> 354.50 | S129: =SUM(L129:Q129) -> 1,070.00 | T129: =SUM(L129+O129) -> 295.50 | U129: =SUM(S129:T129) -> 1,365.50 | V129: =K129-T129 -> 4,704.50
A130: =A129+1 -> 119 | B130: 025-0041921-9 | C130: ANA MARIA | D130: VASQUEZ SANTANA | E130: Clinica las 500 | F130: Conserje | G130: Contratado | H130: I | I130: 2007-06-01 | K130: 5,000.00 | L130: =K130*2.87% -> 143.50 | M130: =K130*7.1% -> 355.00 | N130: =K130*1.3% -> 65.00 | O130: =K130*3.04% -> 152.00 | P130: =K130*7.09% -> 354.50 | S130: =SUM(L130:Q130) -> 1,070.00 | T130: =SUM(L130+O130) -> 295.50 | U130: =SUM(S130:T130) -> 1,365.50 | V130: =K130-T130 -> 4,704.50
A131: =A130+1 -> 120 | B131: 025-0033097-8 | C131: RAFAELA | D131: DIAZ DIAZ | E131: Clinica el Guaral | F131: Conserje | G131: Contratado | H131: I | I131: 2009-08-14 | K131: 5,000.00 | L131: =K131*2.87% -> 143.50 | M131: =K131*7.1% -> 355.00 | N131: =K131*1.3% -> 65.00 | O131: =K131*3.04% -> 152.00 | P131: =K131*7.09% -> 354.50 | S131: =SUM(L131:Q131) -> 1,070.00 | T131: =SUM(L131+O131) -> 295.50 | U131: =SUM(S131:T131) -> 1,365.50 | V131: =K131-T131 -> 4,704.50
A132: =A131+1 -> 121 | B132: 025-0034927-5 | C132: YNIRIO MODESTO | D132: LEONARDO | E132: Unap el cerrito del seibo | F132: Sereno | G132: Contratado | H132: I | I132: 2011-01-01 | K132: 5,000.00 | L132: =K132*2.87% -> 143.50 | M132: =K132*7.1% -> 355.00 | N132: =K132*1.3% -> 65.00 | O132: =K132*3.04% -> 152.00 | P132: =K132*7.09% -> 354.50 | S132: =SUM(L132:Q132) -> 1,070.00 | T132: =SUM(L132+O132) -> 295.50 | U132: =SUM(S132:T132) -> 1,365.50 | V132: =K132-T132 -> 4,704.50
A133: =A132+1 -> 122 | B133: 029-0010041-9 | C133: AMPARO | D133: MOJICA | E133: Centro de zona Villa Guerrero | F133: Conserje | G133: Contratado | H133: I | I133: 2011-01-01 | K133: 5,000.00 | L133: =K133*2.87% -> 143.50 | M133: =K133*7.1% -> 355.00 | N133: =K133*1.3% -> 65.00 | O133: =K133*3.04% -> 152.00 | P133: =K133*7.09% -> 354.50 | S133: =SUM(L133:Q133) -> 1,070.00 | T133: =SUM(L133+O133) -> 295.50 | U133: =SUM(S133:T133) -> 1,365.50 | V133: =K133-T133 -> 4,704.50
A134: =A133+1 -> 123 | B134: 025-0008358-5 | C134: SONIA ELENA | D134: PAREDES MARTINEZ | F134: Conserje | G134: Contratado | H134: I | I134: 2016-04-01 | K134: 5,000.00 | L134: =K134*2.87% -> 143.50 | M134: =K134*7.1% -> 355.00 | N134: =K134*1.3% -> 65.00 | O134: =K134*3.04% -> 152.00 | P134: =K134*7.09% -> 354.50 | S134: =SUM(L134:Q134) -> 1,070.00 | T134: =SUM(L134+O134) -> 295.50 | U134: =SUM(S134:T134) -> 1,365.50 | V134: =K134-T134 -> 4,704.50
A135: =A134+1 -> 124 | B135: 027-0034558-6 | C135: LEONIDAS | D135: MOTA DE LA CRUZ | E135: Unap las guajabas | F135: Conserje | G135: Contratado | H135: I | I135: 2016-09-01 | K135: 5,000.00 | L135: =K135*2.87% -> 143.50 | M135: =K135*7.1% -> 355.00 | N135: =K135*1.3% -> 65.00 | O135: =K135*3.04% -> 152.00 | P135: =K135*7.09% -> 354.50 | S135: =SUM(L135:Q135) -> 1,070.00 | T135: =SUM(L135+O135) -> 295.50 | U135: =SUM(S135:T135) -> 1,365.50 | V135: =K135-T135 -> 4,704.50
A136: =A135+1 -> 125 | B136: 402-3486379-9 | C136: TATATIANA ROSANA | D136: AQUINO | E136: Gerencia de area Seibo | F136: Aux. de Farmacia | G136: Contratado | H136: III | I136: 2018-04-01 | K136: 9,835.00 | L136: =K136*2.87% -> 282.26 | M136: =K136*7.1% -> 698.29 | N136: =K136*1.3% -> 127.86 | O136: =K136*3.04% -> 298.98 | P136: =K136*7.09% -> 697.30 | S136: =SUM(L136:Q136) -> 2,104.69 | T136: =SUM(L136+O136) -> 581.25 | U136: =SUM(S136:T136) -> 2,685.94 | V136: =K136-T136 -> 9,253.75
A137: =A136+1 -> 126 | B137: 029-0015408-5 | C137: ANGELINA | D137: PEGUERO | E137: Unap la mina | F137: Aux. de limpieza | G137: Contratado | H137: I | I137: 2020-01-09 | K137: 5,000.00 | L137: =K137*2.87% -> 143.50 | M137: =K137*7.1% -> 355.00 | N137: =K137*1.3% -> 65.00 | O137: =K137*3.04% -> 152.00 | P137: =K137*7.09% -> 354.50 | S137: =SUM(L137:Q137) -> 1,070.00 | T137: =SUM(L137+O137) -> 295.50 | U137: =SUM(S137:T137) -> 1,365.50 | V137: =K137-T137 -> 4,704.50
A138: =A137+1 -> 127 | B138: 025-0009672-8 | C138: DIONILA | D138: ZORRILLA | E138: Unap Pedro Sanchez | F138: Conserje | G138: Contratado | H138: I | I138: 2021-01-03 | K138: 5,000.00 | L138: =K138*2.87% -> 143.50 | M138: =K138*7.1% -> 355.00 | N138: =K138*1.3% -> 65.00 | O138: =K138*3.04% -> 152.00 | P138: =K138*7.09% -> 354.50 | S138: =SUM(L138:Q138) -> 1,070.00 | T138: =SUM(L138+O138) -> 295.50 | U138: =SUM(S138:T138) -> 1,365.50 | V138: =K138-T138 -> 4,704.50
A139: =A138+1 -> 128 | B139: 025-0032466-6 | C139: MILOSY ARACELIS | D139: BAEZ APONTE | E139: Unap Cañada del Agua | F139: Aux. de enfermeria | G139: Contratado | H139: III | I139: 2021-01-07 | K139: 10,000.00 | L139: =K139*2.87% -> 287.00 | M139: =K139*7.1% -> 710.00 | N139: =K139*1.3% -> 130.00 | O139: =K139*3.04% -> 304.00 | P139: =K139*7.09% -> 709.00 | S139: =SUM(L139:Q139) -> 2,140.00 | T139: =SUM(L139+O139) -> 591.00 | U139: =SUM(S139:T139) -> 2,731.00 | V139: =K139-T139 -> 9,409.00
A140: =A139+1 -> 129 | B140: 023-0075496-3 | C140: CARMEN DOLORES | D140: GARCIA | E140: Unap Villa Guerrero | F140: Conserje | G140: Contratado | H140: I | I140: 2021-09-01 | K140: 5,000.00 | L140: =K140*2.87% -> 143.50 | M140: =K140*7.1% -> 355.00 | N140: =K140*1.3% -> 65.00 | O140: =K140*3.04% -> 152.00 | P140: =K140*7.09% -> 354.50 | S140: =SUM(L140:Q140) -> 1,070.00 | T140: =SUM(L140+O140) -> 295.50 | U140: =SUM(S140:T140) -> 1,365.50 | V140: =K140-T140 -> 4,704.50
A141: =A140+1 -> 130 | B141: 065-0019411-0 | C141: CANDIDA | D141: DE LA CRUZ | E141: Los Franceses | F141: Conserje | G141: Contratado | H141: I | I141: 2021-09-01 | K141: 5,000.00 | L141: =K141*2.87% -> 143.50 | M141: =K141*7.1% -> 355.00 | N141: =K141*1.3% -> 65.00 | O141: =K141*3.04% -> 152.00 | P141: =K141*7.09% -> 354.50 | S141: =SUM(L141:Q141) -> 1,070.00 | T141: =SUM(L141+O141) -> 295.50 | U141: =SUM(S141:T141) -> 1,365.50 | V141: =K141-T141 -> 4,704.50
A142: =A141+1 -> 131 | B142: 029-0007400-2 | C142: LUCIA | D142: DE JESUS | E142: Unap el cedro de miches | F142: Conserje | G142: Contratado | H142: I | I142: 2022-05-01 | K142: 5,000.00 | L142: =K142*2.87% -> 143.50 | M142: =K142*7.1% -> 355.00 | N142: =K142*1.3% -> 65.00 | O142: =K142*3.04% -> 152.00 | P142: =K142*7.09% -> 354.50 | S142: =SUM(L142:Q142) -> 1,070.00 | T142: =SUM(L142+O142) -> 295.50 | U142: =SUM(S142:T142) -> 1,365.50 | V142: =K142-T142 -> 4,704.50
A143: =A142+1 -> 132 | B143: 025-0015700-9 | C143: ANTONIO | D143: HERNANDEZ | E143: Unap Magarin | F143: Seguridad | G143: Contratado | H143: I | I143: 2023-02-01 | K143: 5,000.00 | L143: =K143*2.87% -> 143.50 | M143: =K143*7.1% -> 355.00 | N143: =K143*1.3% -> 65.00 | O143: =K143*3.04% -> 152.00 | P143: =K143*7.09% -> 354.50 | S143: =SUM(L143:Q143) -> 1,070.00 | T143: =SUM(L143+O143) -> 295.50 | U143: =SUM(S143:T143) -> 1,365.50 | V143: =K143-T143 -> 4,704.50
A144: =A143+1 -> 133 | B144: 029-0009483-6 | C144: DEMETRIO | D144: MEDINA | E144: Unap El Cerrito | F144: Sereno | G144: Contratado | H144: I | I144: 2023-04-01 | K144: 5,000.00 | L144: =K144*2.87% -> 143.50 | M144: =K144*7.1% -> 355.00 | N144: =K144*1.3% -> 65.00 | O144: =K144*3.04% -> 152.00 | P144: =K144*7.09% -> 354.50 | S144: =SUM(L144:Q144) -> 1,070.00 | T144: =SUM(L144+O144) -> 295.50 | U144: =SUM(S144:T144) -> 1,365.50 | V144: =K144-T144 -> 4,704.50
A145: =A144+1 -> 134 | B145: 029-0016683-2 | C145: VIRGINIA | D145: SANTANA MENDOZA | E145: Unap la Gina | F145: Conserje | G145: Contratado | H145: I | I145: 2024-06-01 | K145: 5,000.00 | L145: =K145*2.87% -> 143.50 | M145: =K145*7.1% -> 355.00 | N145: =K145*1.3% -> 65.00 | O145: =K145*3.04% -> 152.00 | P145: =K145*7.09% -> 354.50 | S145: =SUM(L145:Q145) -> 1,070.00 | T145: =SUM(L145+O145) -> 295.50 | U145: =SUM(S145:T145) -> 1,365.50 | V145: =K145-T145 -> 4,704.50
A146: =A145+1 -> 135 | B146: 402-2902338-3 | C146: LEIDI ARIELA | D146: DOROTEO VASQUEZ | E146: Gerencia de Area | F146: Digitadora | G146: Contratado | H146: 1 | I146: 2025-02-02 | K146: 10,000.00 | L146: =K146*2.87% -> 287.00 | M146: =K146*7.1% -> 710.00 | N146: =K146*1.3% -> 130.00 | O146: =K146*3.04% -> 304.00 | P146: =K146*7.09% -> 709.00 | S146: =SUM(L146:Q146) -> 2,140.00 | T146: =SUM(L146+O146) -> 591.00 | U146: =SUM(S146:T146) -> 2,731.00 | V146: =K146-T146 -> 9,409.00
A147: =A146+1 -> 136 | B147: 402-0976368-5 | C147: JOHAN EMIL | D147: VARGAS DE LA CRUZ | E147: Gerencia de area | F147: Digitador | G147: Contratado | H147: I | I147: 2025-04-01 | K147: 10,000.00 | L147: =K147*2.87% -> 287.00 | M147: =K147*7.1% -> 710.00 | N147: =K147*1.3% -> 130.00 | O147: =K147*3.04% -> 304.00 | P147: =K147*7.09% -> 709.00 | S147: =SUM(L147:Q147) -> 2,140.00 | T147: =SUM(L147+O147) -> 591.00 | U147: =SUM(S147:T147) -> 2,731.00 | V147: =K147-T147 -> 9,409.00
A148: =A147+1 -> 137 | B148: 027-0048830-3 | C148: ROCAURIS LINAURIS | D148: VILORIO BAEZ | E148: Gerencia de area el seibo | F148: Soporte tecnico | G148: Contratado | H148: I | I148: 2025-06-01 | K148: 30,000.00 | L148: =K148*2.87% -> 861.00 | M148: =K148*7.1% -> 2,130.00 | N148: =K148*1.3% -> 390.00 | O148: =K148*3.04% -> 912.00 | P148: =K148*7.09% -> 2,127.00 | S148: =SUM(L148:Q148) -> 6,420.00 | T148: =SUM(L148+O148) -> 1,773.00 | U148: =SUM(S148:T148) -> 8,193.00 | V148: =K148-T148 -> 28,227.00
A149: =A148+1 -> 138 | B149: 4022252146-6 | C149: OSVALDO ANTONIO | D149: CRUZ BERAS | E149: Unap Los Franceses | F149: Seguridad | G149: Contratado | H149: I | I149: 2024-10-01 | K149: 5,000.00 | L149: =K149*2.87% -> 143.50 | M149: =K149*7.1% -> 355.00 | N149: =K149*1.3% -> 65.00 | O149: =K149*3.04% -> 152.00 | P149: =K149*7.09% -> 354.50 | S149: =SUM(L149:Q149) -> 1,070.00 | T149: =SUM(L149+O149) -> 295.50 | U149: =SUM(S149:T149) -> 1,365.50 | V149: =K149-T149 -> 4,704.50
A150: =A149+1 -> 139 | B150: 103-0005891-3 | C150: SONIA MARGARITA | D150: HACEN MENOR | E150: Clinica Higueral | F150: Conserje | G150: Contratado | H150: I | I150: 2007-06-25 | K150: 5,000.00 | L150: =K150*2.87% -> 143.50 | M150: =K150*7.1% -> 355.00 | N150: =K150*1.3% -> 65.00 | O150: =K150*3.04% -> 152.00 | P150: =K150*7.09% -> 354.50 | S150: =SUM(L150:Q150) -> 1,070.00 | T150: =SUM(L150+O150) -> 295.50 | U150: =SUM(S150:T150) -> 1,365.50 | V150: =K150-T150 -> 4,704.50
A151: =A150+1 -> 140 | B151: 026-0128058-5 | C151: ANGELA | D151: MATEO VILLAR | E151: Clinica Maria Trinidad Sanchez | F151: Conserje | G151: Contratado | H151: I | I151: 2007-11-01 | K151: 5,000.00 | L151: =K151*2.87% -> 143.50 | M151: =K151*7.1% -> 355.00 | N151: =K151*1.3% -> 65.00 | O151: =K151*3.04% -> 152.00 | P151: =K151*7.09% -> 354.50 | S151: =SUM(L151:Q151) -> 1,070.00 | T151: =SUM(L151+O151) -> 295.50 | U151: =SUM(S151:T151) -> 1,365.50 | V151: =K151-T151 -> 4,704.50
A152: =A151+1 -> 141 | B152: 026-0031430-2 | C152: FRANCISCA | D152: NOLASCO | E152: Unap Piedra Linda | F152: Conserje | G152: Contratado | H152: I | I152: 2008-02-01 | K152: 5,000.00 | L152: =K152*2.87% -> 143.50 | M152: =K152*7.1% -> 355.00 | N152: =K152*1.3% -> 65.00 | O152: =K152*3.04% -> 152.00 | P152: =K152*7.09% -> 354.50 | S152: =SUM(L152:Q152) -> 1,070.00 | T152: =SUM(L152+O152) -> 295.50 | U152: =SUM(S152:T152) -> 1,365.50 | V152: =K152-T152 -> 4,704.50
A153: =A152+1 -> 142 | B153: 026-0079070-9 | C153: SANDRA | D153: CESPEDES PAYANO | E153: Unap Cucama | F153: Conserje | G153: Contratado | H153: I | I153: 2008-02-14 | K153: 5,000.00 | L153: =K153*2.87% -> 143.50 | M153: =K153*7.1% -> 355.00 | N153: =K153*1.3% -> 65.00 | O153: =K153*3.04% -> 152.00 | P153: =K153*7.09% -> 354.50 | S153: =SUM(L153:Q153) -> 1,070.00 | T153: =SUM(L153+O153) -> 295.50 | U153: =SUM(S153:T153) -> 1,365.50 | V153: =K153-T153 -> 4,704.50
A154: =A153+1 -> 143 | B154: 026-0039613-5 | C154: ROGELIO | D154: SOLANO SILVESTRE | E154: Unap Los Mulos | F154: Sereno | G154: Contratado | H154: I | I154: 2008-10-01 | K154: 5,000.00 | L154: =K154*2.87% -> 143.50 | M154: =K154*7.1% -> 355.00 | N154: =K154*1.3% -> 65.00 | O154: =K154*3.04% -> 152.00 | P154: =K154*7.09% -> 354.50 | S154: =SUM(L154:Q154) -> 1,070.00 | T154: =SUM(L154+O154) -> 295.50 | U154: =SUM(S154:T154) -> 1,365.50 | V154: =K154-T154 -> 4,704.50
A155: =A154+1 -> 144 | B155: 026-0045084-1 | C155: ELSA DEONICIA | D155: MERCEDES ORTIZ | E155: Clinica Higueral | F155: Lic.Enfermeria | G155: Contratado | H155: IV | I155: 2009-08-03 | K155: 10,000.00 | L155: =K155*2.87% -> 287.00 | M155: =K155*7.1% -> 710.00 | N155: =K155*1.3% -> 130.00 | O155: =K155*3.04% -> 304.00 | P155: =K155*7.09% -> 709.00 | S155: =SUM(L155:Q155) -> 2,140.00 | T155: =SUM(L155+O155) -> 591.00 | U155: =SUM(S155:T155) -> 2,731.00 | V155: =K155-T155 -> 9,409.00
A156: =A155+1 -> 145 | B156: 026-0141280-8 | C156: WANDA YUSIL | D156: DEL ROSARIO | E156: Clinica Villa Hermosa | F156: Aux. de Oficina | G156: Contratado | H156: III | I156: 2010-02-01 | K156: 5,000.00 | L156: =K156*2.87% -> 143.50 | M156: =K156*7.1% -> 355.00 | N156: =K156*1.3% -> 65.00 | O156: =K156*3.04% -> 152.00 | P156: =K156*7.09% -> 354.50 | S156: =SUM(L156:Q156) -> 1,070.00 | T156: =SUM(L156+O156) -> 295.50 | U156: =SUM(S156:T156) -> 1,365.50 | V156: =K156-T156 -> 4,704.50
A157: =A156+1 -> 146 | B157: 026-0039834-7 | C157: ENMA | D157: DE LOS SANTOS | E157: UNAP Los Coco | F157: Conserje | G157: Contratado | H157: I | I157: 2010-04-01 | K157: 5,000.00 | L157: =K157*2.87% -> 143.50 | M157: =K157*7.1% -> 355.00 | N157: =K157*1.3% -> 65.00 | O157: =K157*3.04% -> 152.00 | P157: =K157*7.09% -> 354.50 | S157: =SUM(L157:Q157) -> 1,070.00 | T157: =SUM(L157+O157) -> 295.50 | U157: =SUM(S157:T157) -> 1,365.50 | V157: =K157-T157 -> 4,704.50
A158: =A157+1 -> 147 | B158: 295-0002936-7 | C158: CARLOS ANT. | D158: CORDONES | E158: UNAP KM 14 | F158: Sereno | G158: Contratado | H158: I | I158: 2012-07-01 | K158: 5,000.00 | L158: =K158*2.87% -> 143.50 | M158: =K158*7.1% -> 355.00 | N158: =K158*1.3% -> 65.00 | O158: =K158*3.04% -> 152.00 | P158: =K158*7.09% -> 354.50 | S158: =SUM(L158:Q158) -> 1,070.00 | T158: =SUM(L158+O158) -> 295.50 | U158: =SUM(S158:T158) -> 1,365.50 | V158: =K158-T158 -> 4,704.50
A159: =A158+1 -> 148 | B159: 026-0061107-9 | C159: FERMIN | D159: RIJO | E159: UNAP Luis J. Suarez | F159: Sereno | G159: Contratado | H159: I | I159: 2012-08-01 | K159: 5,000.00 | L159: =K159*2.87% -> 143.50 | M159: =K159*7.1% -> 355.00 | N159: =K159*1.3% -> 65.00 | O159: =K159*3.04% -> 152.00 | P159: =K159*7.09% -> 354.50 | S159: =SUM(L159:Q159) -> 1,070.00 | T159: =SUM(L159+O159) -> 295.50 | U159: =SUM(S159:T159) -> 1,365.50 | V159: =K159-T159 -> 4,704.50
A160: =A159+1 -> 149 | B160: 026-0037001-5 | C160: DINORA E. | D160: RAMIREZ DE LA CRUZ | E160: Oficina area Romana | F160: Seccretaria | G160: Contratado | H160: II | I160: 2014-03-01 | K160: 20,400.00 | L160: =K160*2.87% -> 585.48 | M160: =K160*7.1% -> 1,448.40 | N160: =K160*1.3% -> 265.20 | O160: =K160*3.04% -> 620.16 | P160: =K160*7.09% -> 1,446.36 | S160: =SUM(L160:Q160) -> 4,365.60 | T160: =SUM(L160+O160) -> 1,205.64 | U160: =SUM(S160:T160) -> 5,571.24 | V160: =K160-T160 -> 19,194.36
A161: =A160+1 -> 150 | B161: 026-0043627-9 | C161: MARGARITO | D161: CUETO ROSARIO | E161: Clinica Villa Hermosa | F161: Sereno | G161: Contratado | H161: I | I161: 2014-03-01 | K161: 5,000.00 | L161: =K161*2.87% -> 143.50 | M161: =K161*7.1% -> 355.00 | N161: =K161*1.3% -> 65.00 | O161: =K161*3.04% -> 152.00 | P161: =K161*7.09% -> 354.50 | S161: =SUM(L161:Q161) -> 1,070.00 | T161: =SUM(L161+O161) -> 295.50 | U161: =SUM(S161:T161) -> 1,365.50 | V161: =K161-T161 -> 4,704.50
A162: =A161+1 -> 151 | B162: 026-0044901-7 | C162: RAMONA GERTRUDIS | D162: HUNT S. | E162: Unap Luis J. Suarez | F162: Aux de farmacia | G162: Contratado | H162: III | I162: 2014-10-01 | K162: 7,750.00 | L162: =K162*2.87% -> 222.43 | M162: =K162*7.1% -> 550.25 | N162: =K162*1.3% -> 100.75 | O162: =K162*3.04% -> 235.60 | P162: =K162*7.09% -> 549.48 | S162: =SUM(L162:Q162) -> 1,658.50 | T162: =SUM(L162+O162) -> 458.03 | U162: =SUM(S162:T162) -> 2,116.53 | V162: =K162-T162 -> 7,291.98
A163: =A162+1 -> 152 | B163: 065-0018087-9 | C163: PROFECTA | D163: ACOSTA FERMIN | E163: Unap Saona | F163: Conserje | G163: Contratado | H163: I | I163: 2016-10-01 | K163: 5,000.00 | L163: =K163*2.87% -> 143.50 | M163: =K163*7.1% -> 355.00 | N163: =K163*1.3% -> 65.00 | O163: =K163*3.04% -> 152.00 | P163: =K163*7.09% -> 354.50 | S163: =SUM(L163:Q163) -> 1,070.00 | T163: =SUM(L163+O163) -> 295.50 | U163: =SUM(S163:T163) -> 1,365.50 | V163: =K163-T163 -> 4,704.50
A164: =A163+1 -> 153 | B164: 026-0079667-2 | C164: DOMINGA | D164: MEJIA | E164: Unap conani | F164: Promotara | G164: Contratado | H164: II | I164: 2016-12-01 | K164: 5,000.00 | L164: =K164*2.87% -> 143.50 | M164: =K164*7.1% -> 355.00 | N164: =K164*1.3% -> 65.00 | O164: =K164*3.04% -> 152.00 | P164: =K164*7.09% -> 354.50 | S164: =SUM(L164:Q164) -> 1,070.00 | T164: =SUM(L164+O164) -> 295.50 | U164: =SUM(S164:T164) -> 1,365.50 | V164: =K164-T164 -> 4,704.50
A165: =A164+1 -> 154 | B165: 026-0054441-1 | C165: MARIANO | D165: ANTONIO MARTE | E165: Unap villa verde | F165: Sereno | G165: Contratado | H165: I | I165: 2015-11-01 | K165: 5,000.00 | L165: =K165*2.87% -> 143.50 | M165: =K165*7.1% -> 355.00 | N165: =K165*1.3% -> 65.00 | O165: =K165*3.04% -> 152.00 | P165: =K165*7.09% -> 354.50 | S165: =SUM(L165:Q165) -> 1,070.00 | T165: =SUM(L165+O165) -> 295.50 | U165: =SUM(S165:T165) -> 1,365.50 | V165: =K165-T165 -> 4,704.50
A166: =A165+1 -> 155 | B166: 023-0088812-6 | C166: DAISY MARIA | D166: DE LEON FELIX | E166: Unap villa hermosa | F166: Conserje | G166: Contratado | H166: I | I166: 2017-08-01 | K166: 5,000.00 | L166: =K166*2.87% -> 143.50 | M166: =K166*7.1% -> 355.00 | N166: =K166*1.3% -> 65.00 | O166: =K166*3.04% -> 152.00 | P166: =K166*7.09% -> 354.50 | S166: =SUM(L166:Q166) -> 1,070.00 | T166: =SUM(L166+O166) -> 295.50 | U166: =SUM(S166:T166) -> 1,365.50 | V166: =K166-T166 -> 4,704.50
A167: =A166+1 -> 156 | B167: 001-0414442-3 | C167: LIDIA S. | D167: FLORIMON | E167: Oficina area Romana | F167: Promotora de salud | G167: Contratado | H167: II | I167: 2017-11-01 | K167: 5,000.00 | L167: =K167*2.87% -> 143.50 | M167: =K167*7.1% -> 355.00 | N167: =K167*1.3% -> 65.00 | O167: =K167*3.04% -> 152.00 | P167: =K167*7.09% -> 354.50 | S167: =SUM(L167:Q167) -> 1,070.00 | T167: =SUM(L167+O167) -> 295.50 | U167: =SUM(S167:T167) -> 1,365.50 | V167: =K167-T167 -> 4,704.50
A168: =A167+1 -> 157 | B168: 103-0000358-8 | C168: FELICITA | D168: AGUSTIN MIGUEL | E168: Hosp. Guaymate | F168: Enfermera | G168: Contratado | H168: III | I168: 2018-03-01 | K168: 7,000.00 | L168: =K168*2.87% -> 200.90 | M168: =K168*7.1% -> 497.00 | N168: =K168*1.3% -> 91.00 | O168: =K168*3.04% -> 212.80 | P168: =K168*7.09% -> 496.30 | S168: =SUM(L168:Q168) -> 1,498.00 | T168: =SUM(L168+O168) -> 413.70 | U168: =SUM(S168:T168) -> 1,911.70 | V168: =K168-T168 -> 6,586.30
A169: =A168+1 -> 158 | B169: 026-0120654-9 | C169: DEIVI | D169: SILVESTRE DE LA CRUZ | E169: Unap la caleta | F169: Sereno | G169: Contratado | H169: I | I169: 2019-11-01 | K169: 5,000.00 | L169: =K169*2.87% -> 143.50 | M169: =K169*7.1% -> 355.00 | N169: =K169*1.3% -> 65.00 | O169: =K169*3.04% -> 152.00 | P169: =K169*7.09% -> 354.50 | S169: =SUM(L169:Q169) -> 1,070.00 | T169: =SUM(L169+O169) -> 295.50 | U169: =SUM(S169:T169) -> 1,365.50 | V169: =K169-T169 -> 4,704.50
A170: =A169+1 -> 159 | B170: 026-0123563-9 | C170: JOSEFA | D170: PADUA | E170: Unap la caleta | F170: Conserje | G170: Contratado | H170: I | I170: 2019-01-01 | K170: 5,000.00 | L170: =K170*2.87% -> 143.50 | M170: =K170*7.1% -> 355.00 | N170: =K170*1.3% -> 65.00 | O170: =K170*3.04% -> 152.00 | P170: =K170*7.09% -> 354.50 | S170: =SUM(L170:Q170) -> 1,070.00 | T170: =SUM(L170+O170) -> 295.50 | U170: =SUM(S170:T170) -> 1,365.50 | V170: =K170-T170 -> 4,704.50
A171: =A170+1 -> 160 | B171: 026-0135201-2 | C171: GLORIA CHUQUIANA | D171: JIMENEZ MEDINA | E171: Hosp. Luis J.Suarez | F171: Bionalista | G171: Contratado | H171: IV | I171: 2019-02-01 | K171: 11,000.00 | L171: =K171*2.87% -> 315.70 | M171: =K171*7.1% -> 781.00 | N171: =K171*1.3% -> 143.00 | O171: =K171*3.04% -> 334.40 | P171: =K171*7.09% -> 779.90 | S171: =SUM(L171:Q171) -> 2,354.00 | T171: =SUM(L171+O171) -> 650.10 | U171: =SUM(S171:T171) -> 3,004.10 | V171: =K171-T171 -> 10,349.90
A172: =A171+1 -> 161 | B172: 026-0119903-3 | C172: FERNANDO ABAD | D172: GREGORIO SCROGGNS | E172: Unap caleta | F172: sereno | G172: Contratado | H172: I | I172: 2019-07-01 | K172: 5,000.00 | L172: =K172*2.87% -> 143.50 | M172: =K172*7.1% -> 355.00 | N172: =K172*1.3% -> 65.00 | O172: =K172*3.04% -> 152.00 | P172: =K172*7.09% -> 354.50 | S172: =SUM(L172:Q172) -> 1,070.00 | T172: =SUM(L172+O172) -> 295.50 | U172: =SUM(S172:T172) -> 1,365.50 | V172: =K172-T172 -> 4,704.50
A173: =A172+1 -> 162 | B173: 093-0014276-8 | C173: JOSE | D173: ANUAL | E173: Unap Juan Pablo Duarte | F173: Sereno | G173: Contratado | H173: I | I173: 2019-10-01 | K173: 10,000.00 | L173: =K173*2.87% -> 287.00 | M173: =K173*7.1% -> 710.00 | N173: =K173*1.3% -> 130.00 | O173: =K173*3.04% -> 304.00 | P173: =K173*7.09% -> 709.00 | S173: =SUM(L173:Q173) -> 2,140.00 | T173: =SUM(L173+O173) -> 591.00 | U173: =SUM(S173:T173) -> 2,731.00 | V173: =K173-T173 -> 9,409.00
A174: =A173+1 -> 163 | B174: 402-4366450-1 | C174: LUIS ALBERTO | D174: YAN | E174: Unap villa hermosa | F174: Sereno | G174: Contratado | H174: I | I174: 2019-10-01 | K174: 10,000.00 | L174: =K174*2.87% -> 287.00 | M174: =K174*7.1% -> 710.00 | N174: =K174*1.3% -> 130.00 | O174: =K174*3.04% -> 304.00 | P174: =K174*7.09% -> 709.00 | S174: =SUM(L174:Q174) -> 2,140.00 | T174: =SUM(L174+O174) -> 591.00 | U174: =SUM(S174:T174) -> 2,731.00 | V174: =K174-T174 -> 9,409.00
A175: =A174+1 -> 164 | B175: 026-0036110-5 | C175: FRANCIA | D175: CARABALLO | E175: Unap isla saona | F175: Enfermera | G175: Contratado | H175: III | I175: 2019-10-01 | K175: 17,936.00 | L175: =K175*2.87% -> 514.76 | M175: =K175*7.1% -> 1,273.46 | N175: =K175*1.3% -> 233.17 | O175: =K175*3.04% -> 545.25 | P175: =K175*7.09% -> 1,271.66 | S175: =SUM(L175:Q175) -> 3,838.30 | T175: =SUM(L175+O175) -> 1,060.02 | U175: =SUM(S175:T175) -> 4,898.32 | V175: =K175-T175 -> 16,875.98
A176: =A175+1 -> 165 | B176: 025-0013949-4 | C176: INAGCIO | D176: MORALES | E176: Unap villa Hermosa 3 | F176: Sereno | G176: Contratado | H176: I | I176: 2021-02-01 | K176: 5,000.00 | L176: =K176*2.87% -> 143.50 | M176: =K176*7.1% -> 355.00 | N176: =K176*1.3% -> 65.00 | O176: =K176*3.04% -> 152.00 | P176: =K176*7.09% -> 354.50 | S176: =SUM(L176:Q176) -> 1,070.00 | T176: =SUM(L176+O176) -> 295.50 | U176: =SUM(S176:T176) -> 1,365.50 | V176: =K176-T176 -> 4,704.50
A177: =A176+1 -> 166 | B177: 026-0108536-4 | C177: ANA IRIS | D177: MEJIA | E177: CPN Villa hermosa | F177: Conserje | G177: Contratado | H177: I | I177: 2021-01-06 | K177: 5,000.00 | L177: =K177*2.87% -> 143.50 | M177: =K177*7.1% -> 355.00 | N177: =K177*1.3% -> 65.00 | O177: =K177*3.04% -> 152.00 | P177: =K177*7.09% -> 354.50 | S177: =SUM(L177:Q177) -> 1,070.00 | T177: =SUM(L177+O177) -> 295.50 | U177: =SUM(S177:T177) -> 1,365.50 | V177: =K177-T177 -> 4,704.50
A178: =A177+1 -> 167 | B178: 402-2189542-4 | C178: NORMAN D | D178: SUAZO BERIHUETE | E178: UNAP Km 14 | F178: Sereno | G178: Contratado | H178: I | I178: 2022-10-01 | K178: 5,000.00 | L178: =K178*2.87% -> 143.50 | M178: =K178*7.1% -> 355.00 | N178: =K178*1.3% -> 65.00 | O178: =K178*3.04% -> 152.00 | P178: =K178*7.09% -> 354.50 | S178: =SUM(L178:Q178) -> 1,070.00 | T178: =SUM(L178+O178) -> 295.50 | U178: =SUM(S178:T178) -> 1,365.50 | V178: =K178-T178 -> 4,704.50
A179: =A178+1 -> 168 | B179: 025-0010716-0 | C179: MANUEL ANTONIO | D179: LEONARDO | E179: Unap pica piedra | F179: SERENO | G179: Contratado | H179: I | I179: 2022-10-01 | K179: 10,000.00 | L179: =K179*2.87% -> 287.00 | M179: =K179*7.1% -> 710.00 | N179: =K179*1.3% -> 130.00 | O179: =K179*3.04% -> 304.00 | P179: =K179*7.09% -> 709.00 | S179: =SUM(L179:Q179) -> 2,140.00 | T179: =SUM(L179+O179) -> 591.00 | U179: =SUM(S179:T179) -> 2,731.00 | V179: =K179-T179 -> 9,409.00
A180: =A179+1 -> 169 | B180: 026-0117059-6 | C180: GRISEYDA JOSEFINA | D180: MARTINEZ REYES | E180: CPN Zona Franca Romana | F180: Conserje | G180: Contratado | H180: I | I180: 2023-02-01 | K180: 5,000.00 | L180: =K180*2.87% -> 143.50 | M180: =K180*7.1% -> 355.00 | N180: =K180*1.3% -> 65.00 | O180: =K180*3.04% -> 152.00 | P180: =K180*7.09% -> 354.50 | S180: =SUM(L180:Q180) -> 1,070.00 | T180: =SUM(L180+O180) -> 295.50 | U180: =SUM(S180:T180) -> 1,365.50 | V180: =K180-T180 -> 4,704.50
A181: =A180+1 -> 170 | B181: 026-0138616-8 | C181: JOSE OMAR | D181: CEDANO REYES | E181: Oficina area Romana | F181: Digitador | G181: Contratado | H181: I | I181: 2023-03-01 | K181: 8,000.00 | L181: =K181*2.87% -> 229.60 | M181: =K181*7.1% -> 568.00 | N181: =K181*1.3% -> 104.00 | O181: =K181*3.04% -> 243.20 | P181: =K181*7.09% -> 567.20 | S181: =SUM(L181:Q181) -> 1,712.00 | T181: =SUM(L181+O181) -> 472.80 | U181: =SUM(S181:T181) -> 2,184.80 | V181: =K181-T181 -> 7,527.20
A182: =A181+1 -> 171 | B182: 026-0005032-8 | C182: RAUL ANTONIO | D182: CONCEPCION | E182: Centro Diagnostico | F182: Seguridad | G182: Contratado | H182: I | I182: 2023-10-01 | K182: 10,000.00 | L182: =K182*2.87% -> 287.00 | M182: =K182*7.1% -> 710.00 | N182: =K182*1.3% -> 130.00 | O182: =K182*3.04% -> 304.00 | P182: =K182*7.09% -> 709.00 | S182: =SUM(L182:Q182) -> 2,140.00 | T182: =SUM(L182+O182) -> 591.00 | U182: =SUM(S182:T182) -> 2,731.00 | V182: =K182-T182 -> 9,409.00
A183: =A182+1 -> 172 | B183: 402-23161422-9 | C183: MOISES MANUEL | D183: PARESON | E183: Centro Diagnostico | F183: Seguridad | G183: Contratado | H183: I | I183: 2023-10-01 | K183: 10,000.00 | L183: =K183*2.87% -> 287.00 | M183: =K183*7.1% -> 710.00 | N183: =K183*1.3% -> 130.00 | O183: =K183*3.04% -> 304.00 | P183: =K183*7.09% -> 709.00 | S183: =SUM(L183:Q183) -> 2,140.00 | T183: =SUM(L183+O183) -> 591.00 | U183: =SUM(S183:T183) -> 2,731.00 | V183: =K183-T183 -> 9,409.00
A184: =A183+1 -> 173 | B184: 026-0049514-3 | C184: INES BASTARDO | D184: DE LOS SANTOS | E184: Clinica Pepe Rosario | F184: Conserje | G184: Contratado | H184: I | I184: 2007-06-01 | K184: 5,000.00 | L184: =K184*2.87% -> 143.50 | M184: =K184*7.1% -> 355.00 | N184: =K184*1.3% -> 65.00 | O184: =K184*3.04% -> 152.00 | P184: =K184*7.09% -> 354.50 | S184: =SUM(L184:Q184) -> 1,070.00 | T184: =SUM(L184+O184) -> 295.50 | U184: =SUM(S184:T184) -> 1,365.50 | V184: =K184-T184 -> 4,704.50
A185: =A184+1 -> 174 | B185: 085-0008810-2 | C185: TERESA | D185: ESPINALES BAEZ | E185: Unap Boca de Chavón | F185: conserje | G185: Contratado | H185: I | I185: 2007-07-02 | K185: 5,000.00 | L185: =K185*2.87% -> 143.50 | M185: =K185*7.1% -> 355.00 | N185: =K185*1.3% -> 65.00 | O185: =K185*3.04% -> 152.00 | P185: =K185*7.09% -> 354.50 | S185: =SUM(L185:Q185) -> 1,070.00 | T185: =SUM(L185+O185) -> 295.50 | U185: =SUM(S185:T185) -> 1,365.50 | V185: =K185-T185 -> 4,704.50
A186: =A185+1 -> 175 | B186: 028-0080705-5 | C186: NICAURY | D186: RUIZ ORTIZ | E186: Unap Mamá Tingó | F186: Conserje | G186: Contratado | H186: I | I186: 2007-07-16 | K186: 5,000.00 | L186: =K186*2.87% -> 143.50 | M186: =K186*7.1% -> 355.00 | N186: =K186*1.3% -> 65.00 | O186: =K186*3.04% -> 152.00 | P186: =K186*7.09% -> 354.50 | S186: =SUM(L186:Q186) -> 1,070.00 | T186: =SUM(L186+O186) -> 295.50 | U186: =SUM(S186:T186) -> 1,365.50 | V186: =K186-T186 -> 4,704.50
A187: =A186+1 -> 176 | B187: 028-0030235-4 | C187: MARIA | D187: PEREZ GUERRERO | E187: Clinica Los Sotos | F187: Conserje | G187: Contratado | H187: I | I187: 2007-08-01 | K187: 5,000.00 | L187: =K187*2.87% -> 143.50 | M187: =K187*7.1% -> 355.00 | N187: =K187*1.3% -> 65.00 | O187: =K187*3.04% -> 152.00 | P187: =K187*7.09% -> 354.50 | S187: =SUM(L187:Q187) -> 1,070.00 | T187: =SUM(L187+O187) -> 295.50 | U187: =SUM(S187:T187) -> 1,365.50 | V187: =K187-T187 -> 4,704.50
A188: =A187+1 -> 177 | B188: 023-0006051-0 | C188: FULGENCIA | D188: GUERRERO CIPRIAN | E188: UNAP San Pedro | F188: Enfermera | G188: Contratado | H188: III | I188: 2010-02-01 | K188: 12,000.00 | L188: =K188*2.87% -> 344.40 | M188: =K188*7.1% -> 852.00 | N188: =K188*1.3% -> 156.00 | O188: =K188*3.04% -> 364.80 | P188: =K188*7.09% -> 850.80 | S188: =SUM(L188:Q188) -> 2,568.00 | T188: =SUM(L188+O188) -> 709.20 | U188: =SUM(S188:T188) -> 3,277.20 | V188: =K188-T188 -> 11,290.80
A189: =A188+1 -> 178 | B189: 085-0004486-5 | C189: LUISA | D189: RIJO SANTANA | E189: UNAP Benerito Higuey | F189: Conserje | G189: Contratado | H189: I | I189: 2010-11-01 | K189: 5,000.00 | L189: =K189*2.87% -> 143.50 | M189: =K189*7.1% -> 355.00 | N189: =K189*1.3% -> 65.00 | O189: =K189*3.04% -> 152.00 | P189: =K189*7.09% -> 354.50 | S189: =SUM(L189:Q189) -> 1,070.00 | T189: =SUM(L189+O189) -> 295.50 | U189: =SUM(S189:T189) -> 1,365.50 | V189: =K189-T189 -> 4,704.50
A190: =A189+1 -> 179 | B190: 028-0107244-4 | C190: CRISTINA | D190: CARPIO | E190: UNAP Anamuyita | F190: Conserje | G190: Contratado | H190: I | I190: 2012-08-01 | K190: 5,000.00 | L190: =K190*2.87% -> 143.50 | M190: =K190*7.1% -> 355.00 | N190: =K190*1.3% -> 65.00 | O190: =K190*3.04% -> 152.00 | P190: =K190*7.09% -> 354.50 | S190: =SUM(L190:Q190) -> 1,070.00 | T190: =SUM(L190+O190) -> 295.50 | U190: =SUM(S190:T190) -> 1,365.50 | V190: =K190-T190 -> 4,704.50
A191: =A190+1 -> 180 | B191: 028-0044964-3 | C191: VITERBO | D191: PAULINO ZORRILLA | E191: UNAP Anamuyita | F191: Sereno | G191: Contratado | H191: I | I191: 2012-08-01 | K191: 5,000.00 | L191: =K191*2.87% -> 143.50 | M191: =K191*7.1% -> 355.00 | N191: =K191*1.3% -> 65.00 | O191: =K191*3.04% -> 152.00 | P191: =K191*7.09% -> 354.50 | S191: =SUM(L191:Q191) -> 1,070.00 | T191: =SUM(L191+O191) -> 295.50 | U191: =SUM(S191:T191) -> 1,365.50 | V191: =K191-T191 -> 4,704.50
A192: =A191+1 -> 181 | B192: 028-0003392-6 | C192: NICOLA | D192: JAQUEZ JIMENEZ | E192: Oficina de area | F192: Supervisora de promotores | G192: Contratado | H192: II | I192: 2012-01-01 | K192: 6,000.00 | L192: =K192*2.87% -> 172.20 | M192: =K192*7.1% -> 426.00 | N192: =K192*1.3% -> 78.00 | O192: =K192*3.04% -> 182.40 | P192: =K192*7.09% -> 425.40 | S192: =SUM(L192:Q192) -> 1,284.00 | T192: =SUM(L192+O192) -> 354.60 | U192: =SUM(S192:T192) -> 1,638.60 | V192: =K192-T192 -> 5,645.40
A193: =A192+1 -> 182 | B193: 028-0042397-8 | C193: FIOR DALIZA | D193: POLANCO | E193: unap los Rosales | F193: Conserje | G193: Contratado | H193: I | I193: 2017-05-01 | K193: 5,000.00 | L193: =K193*2.87% -> 143.50 | M193: =K193*7.1% -> 355.00 | N193: =K193*1.3% -> 65.00 | O193: =K193*3.04% -> 152.00 | P193: =K193*7.09% -> 354.50 | S193: =SUM(L193:Q193) -> 1,070.00 | T193: =SUM(L193+O193) -> 295.50 | U193: =SUM(S193:T193) -> 1,365.50 | V193: =K193-T193 -> 4,704.50
A194: =A193+1 -> 183 | B194: 028-0070552-3 | C194: JOSEFA | D194: GENAO CASTILLO | E194: Unap Villa cerro | F194: Conserje | G194: Contratado | H194: I | I194: 2019-02-01 | K194: 5,000.00 | L194: =K194*2.87% -> 143.50 | M194: =K194*7.1% -> 355.00 | N194: =K194*1.3% -> 65.00 | O194: =K194*3.04% -> 152.00 | P194: =K194*7.09% -> 354.50 | S194: =SUM(L194:Q194) -> 1,070.00 | T194: =SUM(L194+O194) -> 295.50 | U194: =SUM(S194:T194) -> 1,365.50 | V194: =K194-T194 -> 4,704.50
A195: =A194+1 -> 184 | B195: 028-0018469-5 | C195: RAMON | D195: LARAS PINALES | E195: unap cañada honda | F195: sereno | G195: Contratado | H195: I | I195: 2018-05-01 | K195: 5,000.00 | L195: =K195*2.87% -> 143.50 | M195: =K195*7.1% -> 355.00 | N195: =K195*1.3% -> 65.00 | O195: =K195*3.04% -> 152.00 | P195: =K195*7.09% -> 354.50 | S195: =SUM(L195:Q195) -> 1,070.00 | T195: =SUM(L195+O195) -> 295.50 | U195: =SUM(S195:T195) -> 1,365.50 | V195: =K195-T195 -> 4,704.50
A196: =A195+1 -> 185 | B196: 026-0084140-3 | C196: MELANIA | D196: LOPEZ DE MORLA | E196: CPN San Martin | F196: Conserje | G196: Contratado | H196: I | I196: 2018-05-01 | K196: 5,000.00 | L196: =K196*2.87% -> 143.50 | M196: =K196*7.1% -> 355.00 | N196: =K196*1.3% -> 65.00 | O196: =K196*3.04% -> 152.00 | P196: =K196*7.09% -> 354.50 | S196: =SUM(L196:Q196) -> 1,070.00 | T196: =SUM(L196+O196) -> 295.50 | U196: =SUM(S196:T196) -> 1,365.50 | V196: =K196-T196 -> 4,704.50
A197: =A196+1 -> 186 | B197: 023-0078294-9 | C197: GLENNY | D197: BERRY | E197: Hospital de veron | F197: Enfermera | G197: Contratado | H197: III | I197: 2020-01-06 | K197: 14,000.00 | L197: =K197*2.87% -> 401.80 | M197: =K197*7.1% -> 994.00 | N197: =K197*1.3% -> 182.00 | O197: =K197*3.04% -> 425.60 | P197: =K197*7.09% -> 992.60 | S197: =SUM(L197:Q197) -> 2,996.00 | T197: =SUM(L197+O197) -> 827.40 | U197: =SUM(S197:T197) -> 3,823.40 | V197: =K197-T197 -> 13,172.60
A198: =A197+1 -> 187 | B198: 028-0070548-1 | C198: FRANCISCA | D198: CASTILLO DE SANTANA | E198: Unap San Francisco | F198: Conserje | G198: Contratado | H198: I | I198: 2021-01-07 | K198: 5,000.00 | L198: =K198*2.87% -> 143.50 | M198: =K198*7.1% -> 355.00 | N198: =K198*1.3% -> 65.00 | O198: =K198*3.04% -> 152.00 | P198: =K198*7.09% -> 354.50 | S198: =SUM(L198:Q198) -> 1,070.00 | T198: =SUM(L198+O198) -> 295.50 | U198: =SUM(S198:T198) -> 1,365.50 | V198: =K198-T198 -> 4,704.50
A199: =A198+1 -> 188 | B199: 028-004109-2 | C199: JOSE MANUEL | D199: DE LEON ROJAS | E199: Unap Politur | F199: Sereno | G199: Contratado | H199: I | I199: 2022-11-01 | K199: 5,000.00 | L199: =K199*2.87% -> 143.50 | M199: =K199*7.1% -> 355.00 | N199: =K199*1.3% -> 65.00 | O199: =K199*3.04% -> 152.00 | P199: =K199*7.09% -> 354.50 | S199: =SUM(L199:Q199) -> 1,070.00 | T199: =SUM(L199+O199) -> 295.50 | U199: =SUM(S199:T199) -> 1,365.50 | V199: =K199-T199 -> 4,704.50
A200: =A199+1 -> 189 | B200: 028-0025002-5 | C200: LAUTERIO | D200: CASTILLO CARABALLO | E200: CPN Santana | F200: Seguridad | G200: Contratado | H200: I | I200: 2023-01-02 | K200: 5,000.00 | L200: =K200*2.87% -> 143.50 | M200: =K200*7.1% -> 355.00 | N200: =K200*1.3% -> 65.00 | O200: =K200*3.04% -> 152.00 | P200: =K200*7.09% -> 354.50 | S200: =SUM(L200:Q200) -> 1,070.00 | T200: =SUM(L200+O200) -> 295.50 | U200: =SUM(S200:T200) -> 1,365.50 | V200: =K200-T200 -> 4,704.50
A201: =A200+1 -> 190 | B201: 028-0109126-1 | C201: STEPHANIE | D201: JUAN | E201: Unap Villa cerro | F201: Conserje | G201: Contratado | H201: I | I201: 2023-01-02 | K201: 5,000.00 | L201: =K201*2.87% -> 143.50 | M201: =K201*7.1% -> 355.00 | N201: =K201*1.3% -> 65.00 | O201: =K201*3.04% -> 152.00 | P201: =K201*7.09% -> 354.50 | S201: =SUM(L201:Q201) -> 1,070.00 | T201: =SUM(L201+O201) -> 295.50 | U201: =SUM(S201:T201) -> 1,365.50 | V201: =K201-T201 -> 4,704.50
A202: =A201+1 -> 191 | B202: 028-0092734-4 | C202: ROSAINA | D202: VIDO URBAEZ | E202: Unap laguna de Nisibon | F202: Conserje | G202: Contratado | H202: I | I202: 2023-05-01 | K202: 5,000.00 | L202: =K202*2.87% -> 143.50 | M202: =K202*7.1% -> 355.00 | N202: =K202*1.3% -> 65.00 | O202: =K202*3.04% -> 152.00 | P202: =K202*7.09% -> 354.50 | S202: =SUM(L202:Q202) -> 1,070.00 | T202: =SUM(L202+O202) -> 295.50 | U202: =SUM(S202:T202) -> 1,365.50 | V202: =K202-T202 -> 4,704.50
A203: =A202+1 -> 192 | B203: 028-0034619-5 | C203: DOMINGA | D203: MOTA PACHE | E203: Unap Los Platanitos | G203: Contratado | H203: I | I203: 2024-05-01 | K203: 5,000.00 | L203: =K203*2.87% -> 143.50 | M203: =K203*7.1% -> 355.00 | N203: =K203*1.3% -> 65.00 | O203: =K203*3.04% -> 152.00 | P203: =K203*7.09% -> 354.50 | S203: =SUM(L203:Q203) -> 1,070.00 | T203: =SUM(L203+O203) -> 295.50 | U203: =SUM(S203:T203) -> 1,365.50 | V203: =K203-T203 -> 4,704.50
A204: =A203+1 -> 193 | B204: 402-3367418-9 | C204: JULIANNY | D204: CRUZ | E204: Unap Juan Pablo Duarte | F204: Conserje | G204: Contratado | H204: 1 | I204: 2025-07-01 | K204: 5,000.00 | L204: 143.50 | M204: 355.00 | N204: 65.00 | O204: 152.00 | P204: 354.50 | S204: 1,070.00 | T204: 295.50 | U204: 1,365.50 | V204: 4,704.50
... 2 more rows
